Workbook

Sheet Hoja1
R1: Matricula Inicial 2010
B2: Departamento | D2: Municipio | F2: Aldea | H2: Centro Educativo | O2: Docentes | R2: Primero | U2: Segundo | X2: Tercero | AA2: Cuarto | AD2: Quinto | AG2: Sexto | AJ2: Septimo | AM2: Octavo | AP2: Noveno | AS2: Total
B3: Codigo | C3: Nombre | D3: Codigo | E3: Nombre | F3: Codigo | G3: Nombre | H3: Codigo | I3: Nombre | J3: Direccion | K3: Telefono | L3: Zona | M3: Administración | N3: Director | O3: F | P3: M | Q3: T | R3: F | S3: M | T3: T | U3: F | V3: M | W3: T | X3: F | Y3: M | Z3: T | AA3: F | AB3: M | AC3: T | AD3: F | AE3: M | AF3: T | AG3: F | AH3: M | AI3: T | AJ3: F | AK3: M | AL3: T | AM3: F | AN3: M | AO3: T | AP3: F | AQ3: M | AR3: T | AS3: F | AT3: M | AU3: T
B4: 01 | C4: Atlántida | D4: 01 | E4: LA CEIBA | F4: 01 | G4: La Ceiba | H4: 010100007 | I4: CRISTOBAL COLON | J4: COL. YESSENIA CASTILLO | K4: 24424139 | L4: Urbana | M4: Oficial | N4: GLADYS ANTONIA IRIAS AYALA | O4: 13 | P4: 1 | Q4: 14 | R4: 18 | S4: 17 | T4: 35 | U4: 21 | V4: 20 | W4: 41 | X4: 28 | Y4: 27 | Z4: 55 | AA4: 15 | AB4: 20 | AC4: 35 | AD4: 28 | AE4: 20 | AF4: 48 | AG4: 15 | AH4: 20 | AI4: 35 | AJ4: 38 | AK4: 22 | AL4: 60 | AM4: 20 | AN4: 15 | AO4: 35 | AP4: 12 | AQ4: 17 | AR4: 29 | AS4: =R4+U4+X4+AA4+AD4+AG4+AJ4+AM4+AP4 -> 195 | AT4: =S4+V4+Y4+AB4+AE4+AH4+AK4+AN4+AQ4 -> 178 | AU4: 373
B5: 01 | C5: Atlántida | D5: 01 | E5: LA CEIBA | F5: 01 | G5: La Ceiba | H5: 010100016 | I5: JUAN PINEDA CARIAS | J5: COLONIA PIZZATY | K5: 4407426 | L5: Urbana | M5: Oficial | N5: MAIRA LETICIA CAMPOS MARTINEZ | O5: 30 | P5: 5 | Q5: 35 | R5: 56 | S5: 51 | T5: 107 | U5: 63 | V5: 36 | W5: 99 | X5: 41 | Y5: 62 | Z5: 103 | AA5: 46 | AB5: 49 | AC5: 95 | AD5: 46 | AE5: 53 | AF5: 99 | AG5: 45 | AH5: 56 | AI5: 101 | AJ5: 71 | AK5: 63 | AL5: 134 | AM5: 57 | AN5: 36 | AO5: 93 | AP5: 35 | AQ5: 36 | AR5: 71 | AS5: =R5+U5+X5+AA5+AD5+AG5+AJ5+AM5+AP5 -> 460 | AT5: 442 | AU5: 902
B6: 01 | C6: Atlántida | D6: 01 | E6: LA CEIBA | F6: 01 | G6: La Ceiba | H6: 010100028 | I6: JUSTO RUFINO SPILBURY | J6: EL BUFALO | K6: 99276028 | L6: Urbana | M6: Oficial | N6: ESMERALDA ACOSTA VASQUEZ | O6: 11 | P6: 3 | Q6: 14 | R6: 25 | S6: 25 | T6: 50 | U6: 29 | V6: 25 | W6: 54 | X6: 25 | Y6: 36 | Z6: 61 | AA6: 19 | AB6: 27 | AC6: 46 | AD6: 21 | AE6: 26 | AF6: 47 | AG6: 23 | AH6: 21 | AI6: 44 | AJ6: 10 | AK6: 9 | AL6: 19 | AM6: 13 | AN6: 16 | AO6: 29 | AP6: 12 | AQ6: 16 | AR6: 28 | AS6: 177 | AT6: 201 | AU6: 378
B7: 01 | C7: Atlántida | D7: 01 | E7: LA CEIBA | F7: 01 | G7: La Ceiba | H7: 010100031 | I7: RAFAELA HUETE DE RODRIGUEZ | J7: MIRAMAR | K7: 24411446 | L7: Urbana | M7: Oficial | N7: DOLORES NOHEMI RODRIGUEZ HERRERA | O7: 19 | P7: 6 | Q7: 25 | R7: 30 | S7: 44 | T7: 74 | U7: 24 | V7: 30 | W7: 54 | X7: 37 | Y7: 43 | Z7: 80 | AA7: 39 | AB7: 35 | AC7: 74 | AD7: 33 | AE7: 30 | AF7: 63 | AG7: 39 | AH7: 37 | AI7: 76 | AJ7: 28 | AK7: 27 | AL7: 55 | AM7: 22 | AN7: 30 | AO7: 52 | AP7: 16 | AQ7: 27 | AR7: 43 | AS7: 268 | AT7: 303 | AU7: 571
B8: 01 | C8: Atlántida | D8: 01 | E8: LA CEIBA | F8: 01 | G8: La Ceiba | H8: 010100032 | I8: RAFAEL PINEDA PONCE | J8: COL SUYAPA | L8: Urbana | M8: Oficial | N8: MIGUEL LAGOS GOMEZ | O8: 22 | P8: 6 | Q8: 28 | R8: 73 | S8: 80 | T8: 153 | U8: 61 | V8: 38 | W8: 99 | X8: 54 | Y8: 64 | Z8: 118 | AA8: 55 | AB8: 55 | AC8: 110 | AD8: 43 | AE8: 41 | AF8: 84 | AG8: 52 | AH8: 35 | AI8: 87 | AJ8: 28 | AK8: 39 | AL8: 67 | AM8: 36 | AN8: 22 | AO8: 58 | AP8: 23 | AQ8: 14 | AR8: 37 | AS8: 425 | AT8: 388 | AU8: 813
B9: 01 | C9: Atlántida | D9: 01 | E9: LA CEIBA | F9: 01 | G9: La Ceiba | H9: 010100033 | I9: JOSE V VASQUES | J9: GOLOZON | K9: 24421227 | L9: Urbana | M9: Oficial | N9: JOSE ISRRAEL PAGUADA BANEGAS | O9: 23 | P9: 8 | Q9: 31 | R9: 54 | S9: 71 | T9: 125 | U9: 61 | V9: 63 | W9: 124 | X9: 52 | Y9: 65 | Z9: 117 | AA9: 52 | AB9: 53 | AC9: 105 | AD9: 47 | AE9: 46 | AF9: 93 | AG9: 54 | AH9: 36 | AI9: 90 | AJ9: 42 | AK9: 32 | AL9: 74 | AM9: 47 | AN9: 24 | AO9: 71 | AP9: 27 | AQ9: 23 | AR9: 50 | AS9: 436 | AT9: 413 | AU9: 849
B10: 01 | C10: Atlántida | D10: 01 | E10: LA CEIBA | F10: 01 | G10: La Ceiba | H10: 010100042 | I10: JUANA REYES DE MARESMA | J10: PALMIRA | K10: 24423840 | L10: Urbana | M10: Oficial | N10: CARLOS ORTIZ DOMINGUEZ | O10: 13 | P10: 4 | Q10: 17 | R10: 16 | S10: 22 | T10: 38 | U10: 17 | V10: 14 | W10: 31 | X10: 25 | Y10: 15 | Z10: 40 | AA10: 12 | AB10: 25 | AC10: 37 | AD10: 20 | AE10: 20 | AF10: 40 | AG10: 14 | AH10: 16 | AI10: 30 | AJ10: 30 | AK10: 34 | AL10: 64 | AM10: 42 | AN10: 22 | AO10: 64 | AP10: 32 | AQ10: 19 | AR10: 51 | AS10: 208 | AT10: 187 | AU10: 395
B11: 01 | C11: Atlántida | D11: 01 | E11: LA CEIBA | F11: 01 | G11: La Ceiba | H11: 010100045 | I11: JOSE TRINIDAD REYES | J11: BARRIO DANTO | K11: 4425055 | L11: Urbana | M11: Oficial | N11: melvayolanda espinal | O11: 0 | P11: 0 | Q11: 0 | R11: 65 | S11: 53 | T11: 118 | U11: 43 | V11: 52 | W11: 95 | X11: 49 | Y11: 57 | Z11: 106 | AA11: 42 | AB11: 61 | AC11: 103 | AD11: 58 | AE11: 55 | AF11: 113 | AG11: 48 | AH11: 51 | AI11: 99 | AJ11: 44 | AK11: 43 | AL11: 87 | AM11: 54 | AN11: 28 | AO11: 82 | AP11: 30 | AQ11: 20 | AR11: 50 | AS11: 433 | AT11: 420 | AU11: 853
B12: 01 | C12: Atlántida | D12: 01 | E12: LA CEIBA | F12: 21 | G12: Yaruca | H12: 010100047 | I12: MINERVA | J12: CUENCA DEL RIO CANGREJAL 22 KM DE CEIBA | K12: 24490307 | L12: Rural | M12: Oficial | N12: SANTOS AMILCAR PAZ PUERTO | O12: 7 | P12: 5 | Q12: 12 | R12: 14 | S12: 12 | T12: 26 | U12: 23 | V12: 23 | W12: 46 | X12: 17 | Y12: 16 | Z12: 33 | AA12: 14 | AB12: 22 | AC12: 36 | AD12: 11 | AE12: 12 | AF12: 23 | AG12: 18 | AH12: 12 | AI12: 30 | AJ12: 12 | AK12: 5 | AL12: 17 | AM12: 11 | AN12: 15 | AO12: 26 | AP12: 7 | AQ12: 13 | AR12: 20 | AS12: 127 | AT12: 130 | AU12: 257
B13: 01 | C13: Atlántida | D13: 01 | E13: LA CEIBA | F13: 16 | G13: Río Viejo | H13: 010100050 | I13: JUAN LINDO | J13: EL PERU | K13: 97250519 | L13: Rural | M13: Oficial | N13: ROSA MARIA FUNEZ ANDRADE | O13: 9 | P13: 3 | Q13: 12 | R13: 33 | S13: 25 | T13: 58 | U13: 18 | V13: 19 | W13: 37 | X13: 12 | Y13: 19 | Z13: 31 | AA13: 14 | AB13: 16 | AC13: 30 | AD13: 12 | AE13: 19 | AF13: 31 | AG13: 18 | AH13: 9 | AI13: 27 | AJ13: 43 | AK13: 29 | AL13: 72 | AM13: 21 | AN13: 20 | AO13: 41 | AP13: 12 | AQ13: 15 | AR13: 27 | AS13: 183 | AT13: 171 | AU13: 354
B14: 01 | C14: Atlántida | D14: 01 | E14: LA CEIBA | F14: 01 | G14: La Ceiba | H14: 010100053 | I14: CLAUDIO BARRERRA | J14: SAN JUDAS TADEO | K14: 99298716 | L14: Urbana | M14: Oficial | N14: RENE EDGARDO CHAVEZ CENTENO | O14: 83 | P14: 19 | Q14: 102 | R14: 91 | S14: 94 | T14: 185 | U14: 98 | V14: 104 | W14: 202 | X14: 99 | Y14: 79 | Z14: 178 | AA14: 103 | AB14: 91 | AC14: 194 | AD14: 82 | AE14: 71 | AF14: 153 | AG14: 79 | AH14: 89 | AI14: 168 | AJ14: 86 | AK14: 61 | AL14: 147 | AM14: 87 | AN14: 47 | AO14: 134 | AP14: 56 | AQ14: 46 | AR14: 102 | AS14: 781 | AT14: 682 | AU14: 1,463
B15: 01 | C15: Atlántida | D15: 01 | E15: LA CEIBA | F15: 01 | G15: La Ceiba | H15: 010100071 | I15: MARCIO RENE ESPINAL CARDONA | J15: COL. RODOLFO IRIAS NAVAS | K15: 87952352 | L15: Urbana | M15: Oficial | N15: BESSY JANETTE SANCHEZ MEJIA | O15: 25 | P15: 4 | Q15: 29 | R15: 41 | S15: 68 | T15: 109 | U15: 38 | V15: 44 | W15: 82 | X15: 30 | Y15: 56 | Z15: 86 | AA15: 37 | AB15: 50 | AC15: 87 | AD15: 51 | AE15: 41 | AF15: 92 | AG15: 54 | AH15: 54 | AI15: 108 | AJ15: 85 | AK15: 73 | AL15: 158 | AM15: 85 | AN15: 50 | AO15: 135 | AP15: 63 | AQ15: 42 | AR15: 105 | AS15: 484 | AT15: 478 | AU15: 962
B16: 01 | C16: Atlántida | D16: 02 | E16: El Porvenir | F16: 07 | G16: El Gancho | H16: 010200011 | I16: MARCO AURELIO SOTO | J16: LOS CACERES | K16: 98640284 | L16: Rural | M16: Oficial | N16: Cruz Green Arriola | O16: 8 | P16: 1 | Q16: 9 | R16: 9 | S16: 9 | T16: 18 | U16: 14 | V16: 15 | W16: 29 | X16: 4 | Y16: 15 | Z16: 19 | AA16: 15 | AB16: 15 | AC16: 30 | AD16: 8 | AE16: 11 | AF16: 19 | AG16: 10 | AH16: 10 | AI16: 20 | AJ16: 11 | AK16: 15 | AL16: 26 | AM16: 7 | AN16: 7 | AO16: 14 | AP16: 6 | AQ16: 14 | AR16: 20 | AS16: 84 | AT16: 111 | AU16: 195
B17: 01 | C17: Atlántida | D17: 02 | E17: El Porvenir | F17: 08 | G17: El Pino | H17: 010200014 | I17: NARCISO HERNANDEZ | J17: EL PINO, COL 9 DE JULIO | L17: Rural | M17: Oficial | N17: Lilian Suyapa Ordoñez Funez | O17: 10 | P17: 3 | Q17: 13 | R17: 26 | S17: 30 | T17: 56 | U17: 19 | V17: 24 | W17: 43 | X17: 24 | Y17: 18 | Z17: 42 | AA17: 20 | AB17: 23 | AC17: 43 | AD17: 26 | AE17: 10 | AF17: 36 | AG17: 14 | AH17: 6 | AI17: 20 | AJ17: 10 | AK17: 17 | AL17: 27 | AM17: 6 | AN17: 7 | AO17: 13 | AP17: 6 | AQ17: 6 | AR17: 12 | AS17: 151 | AT17: 141 | AU17: 292
B18: 01 | C18: Atlántida | D18: 02 | E18: El Porvenir | F18: 07 | G18: El Gancho | H18: 010200035 | I18: CEB HERIBERTO FLORES LAGOS | J18: ALDEA EL GANCHO | L18: Rural | M18: Oficial | N18: Maria Lucia Amaya | O18: 7 | P18: 2 | Q18: 9 | R18: 13 | S18: 20 | T18: 33 | U18: 11 | V18: 13 | W18: 24 | X18: 10 | Y18: 12 | Z18: 22 | AA18: 12 | AB18: 22 | AC18: 34 | AD18: 10 | AE18: 8 | AF18: 18 | AG18: 3 | AH18: 13 | AI18: 16 | AJ18: 15 | AK18: 12 | AL18: 27 | AM18: 7 | AN18: 12 | AO18: 19 | AP18: 9 | AQ18: 3 | AR18: 12 | AS18: 90 | AT18: 115 | AU18: 205
B19: 01 | C19: Atlántida | D19: 03 | E19: Esparta | F19: 14 | G19: La Libertad | H19: 010300024 | I19: RAFAEL BARDALES BUESO | J19: LA LIBERTAD | K19: 97458692 | L19: Rural | M19: Oficial | N19: KAREN LORENA BARAHONA MALDONADO | O19: 5 | P19: 1 | Q19: 6 | R19: 9 | S19: 6 | T19: 15 | U19: 4 | V19: 6 | W19: 10 | X19: 9 | Y19: 6 | Z19: 15 | AA19: 8 | AB19: 7 | AC19: 15 | AD19: 12 | AE19: 3 | AF19: 15 | AG19: 5 | AH19: 4 | AI19: 9 | AJ19: 11 | AK19: 8 | AL19: 19 | AM19: 5 | AN19: 8 | AO19: 13 | AP19: 10 | AQ19: 4 | AR19: 14 | AS19: 73 | AT19: 52 | AU19: 125
B20: 01 | C20: Atlántida | D20: 03 | E20: Esparta | F20: 20 | G20: Lombardía o La Curva | H20: 010300026 | I20: ESTEBAN GUARDIOLA | J20: LOMBARDIA | K20: 98593951 | L20: Rural | M20: Oficial | N20: NELSON OVIDIO VASQUEZ | O20: 9 | P20: 3 | Q20: 12 | R20: 13 | S20: 13 | T20: 26 | U20: 10 | V20: 10 | W20: 20 | X20: 12 | Y20: 14 | Z20: 26 | AA20: 16 | AB20: 17 | AC20: 33 | AD20: 21 | AE20: 13 | AF20: 34 | AG20: 5 | AH20: 5 | AI20: 10 | AJ20: 22 | AK20: 18 | AL20: 40 | AM20: 16 | AN20: 12 | AO20: 28 | AP20: 22 | AQ20: 26 | AR20: 48 | AS20: 137 | AT20: 128 | AU20: 265
B21: 01 | C21: Atlántida | D21: 03 | E21: Esparta | F21: 19 | G21: Las Flores de Leán | H21: 010300031 | I21: JOSE TRINIDAD CABAÑAS | J21: FLORES DE LEAN | K21: 99525448 | L21: Rural | M21: Oficial | N21: MIRIAN SUYAPA GUARDADO CASTILLO | O21: 5 | P21: 2 | Q21: 7 | R21: 8 | S21: 17 | T21: 25 | U21: 5 | V21: 7 | W21: 12 | X21: 11 | Y21: 8 | Z21: 19 | AA21: 10 | AB21: 7 | AC21: 17 | AD21: 8 | AE21: 8 | AF21: 16 | AG21: 13 | AH21: 10 | AI21: 23 | AJ21: 11 | AK21: 8 | AL21: 19 | AM21: 9 | AN21: 9 | AO21: 18 | AP21: 6 | AQ21: 10 | AR21: 16 | AS21: 81 | AT21: 84 | AU21: 165
B22: 01 | C22: Atlántida | D22: 03 | E22: Esparta | F22: 07 | G22: Ceibita Way | H22: 010300032 | I22: RAMON ROSA | J22: CEIBITA WAY | K22: 96611827 | L22: Rural | M22: Oficial | N22: MARTHA OLIVIA PIEDI ACOSTA | O22: 8 | P22: 3 | Q22: 11 | R22: 15 | S22: 18 | T22: 33 | U22: 22 | V22: 10 | W22: 32 | X22: 15 | Y22: 17 | Z22: 32 | AA22: 9 | AB22: 8 | AC22: 17 | AD22: 22 | AE22: 16 | AF22: 38 | AG22: 10 | AH22: 16 | AI22: 26 | AJ22: 15 | AK22: 22 | AL22: 37 | AM22: 21 | AN22: 15 | AO22: 36 | AP22: 16 | AQ22: 14 | AR22: 30 | AS22: 145 | AT22: 136 | AU22: 281
B23: 01 | C23: Atlántida | D23: 04 | E23: Jutiapa | F23: 31 | G23: Tomalá | H23: 010400008 | I23: SAGRADO CORAZON | J23: TOMALA | K23: 96532629 | L23: Rural | M23: Oficial | N23: HUMBERTO PEREZ DIAZ | O23: 8 | P23: 1 | Q23: 9 | R23: 5 | S23: 6 | T23: 11 | U23: 10 | V23: 8 | W23: 18 | X23: 9 | Y23: 4 | Z23: 13 | AA23: 9 | AB23: 10 | AC23: 19 | AD23: 9 | AE23: 6 | AF23: 15 | AG23: 10 | AH23: 15 | AI23: 25 | AJ23: 18 | AK23: 14 | AL23: 32 | AM23: 12 | AN23: 10 | AO23: 22 | AP23: 12 | AQ23: 7 | AR23: 19 | AS23: 94 | AT23: 80 | AU23: 174
B24: 01 | C24: Atlántida | D24: 04 | E24: Jutiapa | F24: 25 | G24: Roma | H24: 010400010 | I24: 15 DE SEPTIEMBRE | J24: ALDEA DE ROMA | K24: 95823440 | L24: Rural | M24: Oficial | N24: Graciela Veronica Caceres Cruz | O24: 8 | P24: 0 | Q24: 8 | R24: 21 | S24: 21 | T24: 42 | U24: 12 | V24: 18 | W24: 30 | X24: 18 | Y24: 28 | Z24: 46 | AA24: 20 | AB24: 20 | AC24: 40 | AD24: 16 | AE24: 17 | AF24: 33 | AG24: 18 | AH24: 13 | AI24: 31 | AJ24: 11 | AK24: 19 | AL24: 30 | AM24: 11 | AN24: 15 | AO24: 26 | AP24: 16 | AQ24: 6 | AR24: 22 | AS24: 143 | AT24: 157 | AU24: 300
B25: 01 | C25: Atlántida | D25: 04 | E25: Jutiapa | F25: 21 | G25: Nueva Armenia | H25: 010400011 | I25: VISITACION PADILLA | J25: NUEVA ARMENIA | K25: 99459350 | L25: Rural | M25: Oficial | N25: MARITZA LIZETH CRUZ MENDOZA | O25: 10 | P25: 3 | Q25: 13 | R25: 19 | S25: 15 | T25: 34 | U25: 26 | V25: 29 | W25: 55 | X25: 22 | Y25: 17 | Z25: 39 | AA25: 22 | AB25: 27 | AC25: 49 | AD25: 22 | AE25: 17 | AF25: 39 | AG25: 23 | AH25: 26 | AI25: 49 | AJ25: 17 | AK25: 15 | AL25: 32 | AM25: 16 | AN25: 11 | AO25: 27 | AP25: 11 | AQ25: 9 | AR25: 20 | AS25: 178 | AT25: 166 | AU25: 344
B26: 01 | C26: Atlántida | D26: 04 | E26: Jutiapa | F26: 07 | G26: Descombros | H26: 010400015 | I26: RENOVACION | J26: DESCOMBROS | K26: 95819845 | L26: Rural | M26: Oficial | N26: DEISY MARITZA VILLAFRANCA | O26: 9 | P26: 2 | Q26: 11 | R26: 6 | S26: 8 | T26: 14 | U26: 7 | V26: 10 | W26: 17 | X26: 4 | Y26: 9 | Z26: 13 | AA26: 10 | AB26: 17 | AC26: 27 | AD26: 12 | AE26: 7 | AF26: 19 | AG26: 12 | AH26: 7 | AI26: 19 | AJ26: 23 | AK26: 15 | AL26: 38 | AM26: 19 | AN26: 15 | AO26: 34 | AP26: 19 | AQ26: 18 | AR26: 37 | AS26: 112 | AT26: 106 | AU26: 218
B27: 01 | C27: Atlántida | D27: 04 | E27: Jutiapa | F27: 16 | G27: Ilamapa | H27: 010400016 | I27: JOSE CECILIO DEL VALLE | J27: ILAMAPA, BARRIO EL CENTRO | K27: 95893875 | L27: Rural | M27: Oficial | N27: Javier Enrique Ardon Gonzales | O27: 9 | P27: 1 | Q27: 10 | R27: 14 | S27: 16 | T27: 30 | U27: 12 | V27: 12 | W27: 24 | X27: 7 | Y27: 16 | Z27: 23 | AA27: 12 | AB27: 18 | AC27: 30 | AD27: 7 | AE27: 12 | AF27: 19 | AG27: 12 | AH27: 5 | AI27: 17 | AJ27: 8 | AK27: 9 | AL27: 17 | AM27: 9 | AN27: 13 | AO27: 22 | AP27: 17 | AQ27: 16 | AR27: 33 | AS27: 98 | AT27: 117 | AU27: 215
B28: 01 | C28: Atlántida | D28: 04 | E28: Jutiapa | F28: 23 | G28: Piedras Amarillas | H28: 010400041 | I28: JOSE TRINIDAD REYES | J28: PIEDRA AMARILLAS | K28: 33847051 | L28: Rural | M28: Oficial | N28: JOSE LORENZO MARTINEZ | O28: 6 | P28: 5 | Q28: 11 | R28: 13 | S28: 16 | T28: 29 | U28: 15 | V28: 22 | W28: 37 | X28: 19 | Y28: 25 | Z28: 44 | AA28: 10 | AB28: 13 | AC28: 23 | AD28: 14 | AE28: 7 | AF28: 21 | AG28: 16 | AH28: 8 | AI28: 24 | AJ28: 32 | AK28: 23 | AL28: 55 | AM28: 17 | AN28: 25 | AO28: 42 | AP28: 28 | AQ28: 9 | AR28: 37 | AS28: 164 | AT28: 148 | AU28: 312
B29: 01 | C29: Atlántida | D29: 04 | E29: Jutiapa | F29: 18 | G29: La Bomba | H29: 010400067 | I29: MARCO ANTONIO PONCE | J29: LA BOMBA | K29: 96256375 | L29: Rural | M29: Oficial | N29: RONAL EMILIO ARDON SOLIS | O29: 10 | P29: 4 | Q29: 14 | R29: 27 | S29: 33 | T29: 60 | U29: 25 | V29: 15 | W29: 40 | X29: 18 | Y29: 17 | Z29: 35 | AA29: 18 | AB29: 25 | AC29: 43 | AD29: 11 | AE29: 19 | AF29: 30 | AG29: 18 | AH29: 17 | AI29: 35 | AJ29: 17 | AK29: 21 | AL29: 38 | AM29: 20 | AN29: 11 | AO29: 31 | AP29: 12 | AQ29: 7 | AR29: 19 | AS29: 166 | AT29: 165 | AU29: 331
B30: 01 | C30: Atlántida | D30: 04 | E30: Jutiapa | F30: 15 | G30: Entelina | H30: 010400069 | I30: INDEPENDENCIA | J30: ENTELINA | K30: 95806494 | L30: Rural | M30: Oficial | N30: AMADA MELBA RODRIGUEZ MARILLO | O30: 4 | P30: 2 | Q30: 6 | R30: 9 | S30: 8 | T30: 17 | U30: 11 | V30: 5 | W30: 16 | X30: 5 | Y30: 8 | Z30: 13 | AA30: 8 | AB30: 5 | AC30: 13 | AD30: 13 | AE30: 12 | AF30: 25 | AG30: 0 | AH30: 11 | AI30: 11 | AJ30: 8 | AK30: 9 | AL30: 17 | AM30: 7 | AN30: 5 | AO30: 12 | AP30: 8 | AQ30: 10 | AR30: 18 | AS30: 69 | AT30: 73 | AU30: 142
B31: 01 | C31: Atlántida | D31: 05 | E31: La Masica | F31: 07 | G31: El Naranjal | H31: 010500013 | I31: MINERVA | J31: EL NARANJAL | K31: 96522286 | L31: Rural | M31: Oficial | N31: Elsy Leticia Castellanos Garay | O31: 8 | P31: 3 | Q31: 11 | R31: 11 | S31: 13 | T31: 24 | U31: 8 | V31: 12 | W31: 20 | X31: 7 | Y31: 9 | Z31: 16 | AA31: 7 | AB31: 6 | AC31: 13 | AD31: 10 | AE31: 5 | AF31: 15 | AG31: 8 | AH31: 3 | AI31: 11 | AJ31: 22 | AK31: 33 | AL31: 55 | AM31: 20 | AN31: 28 | AO31: 48 | AP31: 26 | AQ31: 20 | AR31: 46 | AS31: 119 | AT31: 129 | AU31: 248
B32: 01 | C32: Atlántida | D32: 05 | E32: La Masica | F32: 13 | G32: San Juan Benque | H32: 010500015 | I32: JOSE TRINIDAD CABAÐAS | J32: SAN JUAN BENQUE | K32: 98806843 | L32: Rural | M32: Oficial | N32: IRIS OLIVIA VARGAS ORTIS | O32: 5 | P32: 6 | Q32: 11 | R32: 10 | S32: 17 | T32: 27 | U32: 15 | V32: 8 | W32: 23 | X32: 15 | Y32: 15 | Z32: 30 | AA32: 15 | AB32: 14 | AC32: 29 | AD32: 13 | AE32: 13 | AF32: 26 | AG32: 10 | AH32: 10 | AI32: 20 | AJ32: 10 | AK32: 8 | AL32: 18 | AM32: 9 | AN32: 7 | AO32: 16 | AP32: 11 | AQ32: 5 | AR32: 16 | AS32: 108 | AT32: 97 | AU32: 205
B33: 01 | C33: Atlántida | D33: 07 | E33: Tela | F33: 01 | G33: Tela | H33: 010700003 | I33: FRANCISCO MORAZAN | J33: EL CENTRO | K33: 4480167 | L33: Urbana | M33: Oficial | N33: Maria Ely Evangelina Vasquez Iglesias | O33: 16 | P33: 5 | Q33: 21 | R33: 31 | S33: 28 | T33: 59 | U33: 21 | V33: 23 | W33: 44 | X33: 16 | Y33: 23 | Z33: 39 | AA33: 28 | AB33: 20 | AC33: 48 | AD33: 25 | AE33: 22 | AF33: 47 | AG33: 20 | AH33: 28 | AI33: 48 | AJ33: 48 | AK33: 40 | AL33: 88 | AM33: 47 | AN33: 32 | AO33: 79 | AP33: 34 | AQ33: 33 | AR33: 67 | AS33: 270 | AT33: 249 | AU33: 519
B34: 01 | C34: Atlántida | D34: 07 | E34: Tela | F34: 01 | G34: Tela | H34: 010700009 | I34: ANTONIO JOSE COELLO | J34: BARRIO SAN JOSE | K34: 24480454 | L34: Urbana | M34: Oficial | N34: Sonia Amparo Portillo Martines | O34: 23 | P34: 1 | Q34: 24 | R34: 34 | S34: 35 | T34: 69 | U34: 40 | V34: 44 | W34: 84 | X34: 34 | Y34: 51 | Z34: 85 | AA34: 38 | AB34: 45 | AC34: 83 | AD34: 25 | AE34: 28 | AF34: 53 | AG34: 45 | AH34: 28 | AI34: 73 | AJ34: 18 | AK34: 29 | AL34: 47 | AM34: 21 | AN34: 22 | AO34: 43 | AP34: 14 | AQ34: 8 | AR34: 22 | AS34: 269 | AT34: 290 | AU34: 559
B35: 01 | C35: Atlántida | D35: 07 | E35: Tela | F35: 01 | G35: Tela | H35: 010700011 | I35: LEMPIRA | J35: BARRIO LEMPIRA | K35: 24481884 | L35: Rural | M35: Oficial | N35: ADA PATRICIA MEJIA SERRANO | O35: 14 | P35: 2 | Q35: 16 | R35: 10 | S35: 16 | T35: 26 | U35: 9 | V35: 12 | W35: 21 | X35: 17 | Y35: 14 | Z35: 31 | AA35: 7 | AB35: 11 | AC35: 18 | AD35: 16 | AE35: 10 | AF35: 26 | AG35: 17 | AH35: 17 | AI35: 34 | AJ35: 17 | AK35: 18 | AL35: 35 | AM35: 17 | AN35: 14 | AO35: 31 | AP35: 13 | AQ35: 14 | AR35: 27 | AS35: 123 | AT35: 126 | AU35: 249
B36: 01 | C36: Atlántida | D36: 07 | E36: Tela | F36: 01 | G36: Tela | H36: 010700013 | I36: DR MIGUEL PAZ BARAHONA | J36: EL CENTRO | K36: 24482267 | L36: Urbana | M36: Oficial | N36: José Lito Soler Lara | O36: 15 | P36: 3 | Q36: 18 | R36: 25 | S36: 34 | T36: 59 | U36: 25 | V36: 29 | W36: 54 | X36: 17 | Y36: 32 | Z36: 49 | AA36: 30 | AB36: 34 | AC36: 64 | AD36: 24 | AE36: 39 | AF36: 63 | AG36: 19 | AH36: 20 | AI36: 39 | AJ36: 22 | AK36: 17 | AL36: 39 | AM36: 8 | AN36: 17 | AO36: 25 | AP36: 14 | AQ36: 15 | AR36: 29 | AS36: 184 | AT36: 237 | AU36: 421
B37: 01 | C37: Atlántida | D37: 07 | E37: Tela | F37: 28 | G37: Tela | H37: 010700017 | I37: ESTEBAN GUARDIOLA | J37: EL TRIUNFO DE LA CRUZ | K37: 96597523 | L37: Rural | M37: Oficial | N37: RUTILIO AGUIRE ESCALANTE | O37: 23 | P37: 5 | Q37: 28 | R37: 33 | S37: 34 | T37: 67 | U37: 37 | V37: 28 | W37: 65 | X37: 36 | Y37: 35 | Z37: 71 | AA37: 48 | AB37: 35 | AC37: 83 | AD37: 41 | AE37: 43 | AF37: 84 | AG37: 37 | AH37: 44 | AI37: 81 | AJ37: 35 | AK37: 27 | AL37: 62 | AM37: 27 | AN37: 31 | AO37: 58 | AP37: 38 | AQ37: 15 | AR37: 53 | AS37: 332 | AT37: 292 | AU37: 624
B38: 01 | C38: Atlántida | D38: 07 | E38: Tela | F38: 74 | G38: Tornabé | H38: 010700018 | I38: MARCO AURELIO SOTO | J38: TORNABE | K38: 99064880 | L38: Rural | M38: Oficial | N38: Orddy Castillo Guity | O38: 15 | P38: 2 | Q38: 17 | R38: 18 | S38: 28 | T38: 46 | U38: 25 | V38: 27 | W38: 52 | X38: 18 | Y38: 28 | Z38: 46 | AA38: 25 | AB38: 32 | AC38: 57 | AD38: 32 | AE38: 18 | AF38: 50 | AG38: 25 | AH38: 18 | AI38: 43 | AJ38: 28 | AK38: 22 | AL38: 50 | AM38: 27 | AN38: 10 | AO38: 37 | AP38: 26 | AQ38: 28 | AR38: 54 | AS38: 224 | AT38: 211 | AU38: 435
B39: 01 | C39: Atlántida | D39: 07 | E39: Tela | F39: 02 | G39: Agua Blanca | H39: 010700030 | I39: JOSE TRINIDAD CABAÑAS | J39: AGUA BLANCA | K39: 98907301 | L39: Rural | M39: Oficial | N39: Tania Alejandro Soto | O39: 4 | P39: 1 | Q39: 5 | R39: 5 | S39: 9 | T39: 14 | U39: 9 | V39: 2 | W39: 11 | X39: 8 | Y39: 12 | Z39: 20 | AA39: 6 | AB39: 4 | AC39: 10 | AD39: 8 | AE39: 6 | AF39: 14 | AG39: 4 | AH39: 0 | AI39: 4 | AJ39: 5 | AK39: 7 | AL39: 12 | AM39: 7 | AN39: 3 | AO39: 10 | AP39: 6 | AQ39: 4 | AR39: 10 | AS39: 58 | AT39: 47 | AU39: 105
B40: 01 | C40: Atlántida | D40: 07 | E40: Tela | F40: 33 | G40: La Esperanza | H40: 010700034 | I40: MANUEL BONILLA | J40: LA ESPERANZA | K40: 32895373 | L40: Rural | M40: Oficial | N40: América Ondina Mejía Martínes | O40: 6 | P40: 3 | Q40: 9 | R40: 15 | S40: 10 | T40: 25 | U40: 16 | V40: 17 | W40: 33 | X40: 10 | Y40: 20 | Z40: 30 | AA40: 11 | AB40: 17 | AC40: 28 | AD40: 15 | AE40: 12 | AF40: 27 | AG40: 12 | AH40: 10 | AI40: 22 | AJ40: 27 | AK40: 20 | AL40: 47 | AM40: 14 | AN40: 10 | AO40: 24 | AP40: 10 | AQ40: 12 | AR40: 22 | AS40: 130 | AT40: 128 | AU40: 258
B41: 01 | C41: Atlántida | D41: 07 | E41: Tela | F41: 22 | G41: El Guano | H41: 010700038 | I41: PABLO ZELAYA SIERRA | J41: EL GUANO | K41: 96405116 | L41: Rural | M41: Oficial | N41: ALBA AMAYA PAGOADA | O41: 7 | P41: 3 | Q41: 10 | R41: 16 | S41: 19 | T41: 35 | U41: 18 | V41: 9 | W41: 27 | X41: 13 | Y41: 18 | Z41: 31 | AA41: 17 | AB41: 13 | AC41: 30 | AD41: 9 | AE41: 17 | AF41: 26 | AG41: 14 | AH41: 13 | AI41: 27 | AJ41: 13 | AK41: 14 | AL41: 27 | AM41: 13 | AN41: 12 | AO41: 25 | AP41: 16 | AQ41: 8 | AR41: 24 | AS41: 129 | AT41: 123 | AU41: 252
B42: 01 | C42: Atlántida | D42: 07 | E42: Tela | F42: 75 | G42: Villafranca | H42: 010700041 | I42: JOSE TRINIDAD REYES | J42: VILLA FRANCA | K42: 96641727 | L42: Rural | M42: Oficial | N42: Marcio David Galo | O42: 3 | P42: 4 | Q42: 7 | R42: 4 | S42: 7 | T42: 11 | U42: 10 | V42: 6 | W42: 16 | X42: 9 | Y42: 7 | Z42: 16 | AA42: 5 | AB42: 12 | AC42: 17 | AD42: 8 | AE42: 8 | AF42: 16 | AG42: 8 | AH42: 11 | AI42: 19 | AJ42: 19 | AK42: 16 | AL42: 35 | AM42: 15 | AN42: 15 | AO42: 30 | AP42: 14 | AQ42: 8 | AR42: 22 | AS42: 92 | AT42: 90 | AU42: 182
B43: 01 | C43: Atlántida | D43: 07 | E43: Tela | F43: 40 | G43: Las Delicias No.1 | H43: 010700044 | I43: NATIVIDAD MENDOZA | J43: LAS DELICIAS | K43: 98216693 | L43: Rural | M43: Oficial | N43: Sara Murillo Rodriguez | O43: 4 | P43: 3 | Q43: 7 | R43: 6 | S43: 7 | T43: 13 | U43: 8 | V43: 8 | W43: 16 | X43: 7 | Y43: 8 | Z43: 15 | AA43: 6 | AB43: 6 | AC43: 12 | AD43: 2 | AE43: 3 | AF43: 5 | AG43: 2 | AH43: 7 | AI43: 9 | AJ43: 16 | AK43: 12 | AL43: 28 | AM43: 21 | AN43: 17 | AO43: 38 | AP43: 9 | AQ43: 16 | AR43: 25 | AS43: 77 | AT43: 84 | AU43: 161
B44: 01 | C44: Atlántida | D44: 07 | E44: Tela | F44: 01 | G44: Tela | H44: 010700047 | I44: MAESTROS JUBILADOS | J44: BARRIO VENECIA | K44: 24485186 | L44: Urbana | M44: Oficial | N44: Hector Moreno Ochoa | O44: 14 | P44: 3 | Q44: 17 | R44: 20 | S44: 23 | T44: 43 | U44: 36 | V44: 29 | W44: 65 | X44: 22 | Y44: 28 | Z44: 50 | AA44: 26 | AB44: 39 | AC44: 65 | AD44: 29 | AE44: 28 | AF44: 57 | AG44: 28 | AH44: 25 | AI44: 53 | AJ44: 28 | AK44: 25 | AL44: 53 | AM44: 30 | AN44: 32 | AO44: 62 | AP44: 19 | AQ44: 15 | AR44: 34 | AS44: 238 | AT44: 244 | AU44: 482
B45: 01 | C45: Atlántida | D45: 07 | E45: Tela | F45: 72 | G45: Toloa Adentro | H45: 010700063 | I45: SIMON BOLIVAR | J45: TOLOA ADENTRO | K45: 97055196 | L45: Rural | M45: Oficial | N45: ANA PATRICIA SABILLOM CARTAGENA | O45: 8 | P45: 0 | Q45: 8 | R45: 22 | S45: 15 | T45: 37 | U45: 22 | V45: 18 | W45: 40 | X45: 14 | Y45: 15 | Z45: 29 | AA45: 16 | AB45: 11 | AC45: 27 | AD45: 13 | AE45: 9 | AF45: 22 | AG45: 13 | AH45: 8 | AI45: 21 | AJ45: 14 | AK45: 5 | AL45: 19 | AM45: 10 | AN45: 7 | AO45: 17 | AP45: 8 | AQ45: 5 | AR45: 13 | AS45: 132 | AT45: 93 | AU45: 225
B46: 01 | C46: Atlántida | D46: 07 | E46: Tela | F46: 61 | G46: Procón | H46: 010700070 | I46: LA INSTRUCCION | J46: PROCON | K46: 98210273 | L46: Rural | M46: Oficial | N46: Jessica Lorena Romero Hernandez | O46: 6 | P46: 0 | Q46: 6 | R46: 6 | S46: 10 | T46: 16 | U46: 8 | V46: 13 | W46: 21 | X46: 9 | Y46: 13 | Z46: 22 | AA46: 5 | AB46: 15 | AC46: 20 | AD46: 9 | AE46: 13 | AF46: 22 | AG46: 12 | AH46: 5 | AI46: 17 | AJ46: 9 | AK46: 7 | AL46: 16 | AM46: 5 | AN46: 7 | AO46: 12 | AP46: 9 | AQ46: 7 | AR46: 16 | AS46: 72 | AT46: 90 | AU46: 162
B47: 01 | C47: Atlántida | D47: 07 | E47: Tela | F47: 57 | G47: Paujiles | H47: 010700109 | I47: VISITACION PADILLA | J47: PAUJILES | K47: 4482826 | L47: Rural | M47: Oficial | N47: Francisco Cruz Canales | O47: 7 | P47: 5 | Q47: 12 | R47: 16 | S47: 17 | T47: 33 | U47: 32 | V47: 18 | W47: 50 | X47: 17 | Y47: 18 | Z47: 35 | AA47: 19 | AB47: 13 | AC47: 32 | AD47: 17 | AE47: 18 | AF47: 35 | AG47: 11 | AH47: 18 | AI47: 29 | AJ47: 26 | AK47: 21 | AL47: 47 | AM47: 19 | AN47: 17 | AO47: 36 | AP47: 17 | AQ47: 21 | AR47: 38 | AS47: 174 | AT47: 161 | AU47: 335
B48: 01 | C48: Atlántida | D48: 07 | E48: Tela | F48: 01 | G48: Tela | H48: 010700110 | I48: JOHN F. KENNEDY | J48: BARRIO HILAN CREECK | K48: 4488113 | L48: Urbana | M48: Oficial | N48: Iris Yolanda Nuñez Lainez | O48: 17 | P48: 4 | Q48: 21 | R48: 34 | S48: 31 | T48: 65 | U48: 26 | V48: 43 | W48: 69 | X48: 37 | Y48: 35 | Z48: 72 | AA48: 36 | AB48: 31 | AC48: 67 | AD48: 33 | AE48: 33 | AF48: 66 | AG48: 41 | AH48: 28 | AI48: 69 | AJ48: 41 | AK48: 41 | AL48: 82 | AM48: 39 | AN48: 30 | AO48: 69 | AP48: 30 | AQ48: 27 | AR48: 57 | AS48: 317 | AT48: 299 | AU48: 616
B49: 01 | C49: Atlántida | D49: 07 | E49: Tela | F49: 01 | G49: Tela | H49: 010700127 | I49: BENJAMIN MUNGUIA | J49: COL GRANT | K49: 95162990 | L49: Rural | M49: Oficial | N49: Daisy Maribel Villeda López | O49: 6 | P49: 3 | Q49: 9 | R49: 10 | S49: 25 | T49: 35 | U49: 13 | V49: 14 | W49: 27 | X49: 17 | Y49: 11 | Z49: 28 | AA49: 16 | AB49: 13 | AC49: 29 | AD49: 8 | AE49: 15 | AF49: 23 | AG49: 10 | AH49: 6 | AI49: 16 | AJ49: 15 | AK49: 11 | AL49: 26 | AM49: 8 | AN49: 3 | AO49: 11 | AP49: 9 | AQ49: 9 | AR49: 18 | AS49: 106 | AT49: 107 | AU49: 213
B50: 01 | C50: Atlántida | D50: 08 | E50: Arizona | F50: 19 | G50: Mezapita | H50: 010800007 | I50: RAFAEL HELIODORO VALLE | J50: MEZAPITA | K50: 95850814 | L50: Rural | M50: Oficial | N50: MARIA ANGELA BAUTISTA GOMEZ | O50: 14 | P50: 1 | Q50: 15 | R50: 28 | S50: 24 | T50: 52 | U50: 25 | V50: 30 | W50: 55 | X50: 25 | Y50: 23 | Z50: 48 | AA50: 33 | AB50: 18 | AC50: 51 | AD50: 18 | AE50: 20 | AF50: 38 | AG50: 21 | AH50: 21 | AI50: 42 | AJ50: 21 | AK50: 19 | AL50: 40 | AM50: 11 | AN50: 13 | AO50: 24 | AP50: 14 | AQ50: 17 | AR50: 31 | AS50: 196 | AT50: 185 | AU50: 381
B51: 01 | C51: Atlántida | D51: 08 | E51: Arizona | F51: 14 | G51: La Libertad | H51: 010800020 | I51: MANUEL BONILLA | J51: JILAMO NUEVO | L51: Rural | M51: Oficial | N51: AURA ESTELA PAZ BERGANZO | O51: 8 | P51: 3 | Q51: 11 | R51: 13 | S51: 7 | T51: 20 | U51: 19 | V51: 13 | W51: 32 | X51: 14 | Y51: 15 | Z51: 29 | AA51: 18 | AB51: 19 | AC51: 37 | AD51: 19 | AE51: 13 | AF51: 32 | AG51: 18 | AH51: 12 | AI51: 30 | AJ51: 24 | AK51: 10 | AL51: 34 | AM51: 14 | AN51: 13 | AO51: 27 | AP51: 24 | AQ51: 23 | AR51: 47 | AS51: 163 | AT51: 125 | AU51: 288
B52: 01 | C52: Atlántida | D52: 08 | E52: Arizona | F52: 22 | G52: San Francisco de Saco | H52: 010800021 | I52: JOSE TRINIDAD REYES | J52: SAN FRANCISCO DE SACO | K52: 98882389 | L52: Rural | M52: Oficial | N52: SERGIO SILVESTRE REYES COCA | O52: 10 | P52: 4 | Q52: 14 | R52: 14 | S52: 13 | T52: 27 | U52: 16 | V52: 17 | W52: 33 | X52: 25 | Y52: 17 | Z52: 42 | AA52: 9 | AB52: 24 | AC52: 33 | AD52: 22 | AE52: 23 | AF52: 45 | AG52: 7 | AH52: 11 | AI52: 18 | AJ52: 26 | AK52: 15 | AL52: 41 | AM52: 15 | AN52: 10 | AO52: 25 | AP52: 20 | AQ52: 14 | AR52: 34 | AS52: 154 | AT52: 144 | AU52: 298
B53: 01 | C53: Atlántida | D53: 08 | E53: Arizona | F53: 25 | G53: Santa María | H53: 010800023 | I53: LEMPIRA | J53: SANTA MARIA | K53: 98973703 | L53: Rural | M53: Oficial | N53: JUANA LOPEZ BARAHONA | O53: 13 | P53: 2 | Q53: 15 | R53: 12 | S53: 14 | T53: 26 | U53: 16 | V53: 15 | W53: 31 | X53: 25 | Y53: 28 | Z53: 53 | AA53: 12 | AB53: 14 | AC53: 26 | AD53: 20 | AE53: 21 | AF53: 41 | AG53: 16 | AH53: 11 | AI53: 27 | AJ53: 17 | AK53: 13 | AL53: 30 | AM53: 13 | AN53: 14 | AO53: 27 | AP53: 11 | AQ53: 9 | AR53: 20 | AS53: 142 | AT53: 139 | AU53: 281
B54: 01 | C54: Atlántida | D54: 08 | E54: Arizona | F54: 27 | G54: Suyapa de Leán o Mataras | H54: 010800024 | I54: LUIS LANDA | J54: MATARRAS | K54: 4490772 | L54: Rural | M54: Oficial | N54: Alcides Boanerge Leon Paz | O54: 10 | P54: 1 | Q54: 11 | R54: 14 | S54: 12 | T54: 26 | U54: 11 | V54: 20 | W54: 31 | X54: 12 | Y54: 9 | Z54: 21 | AA54: 12 | AB54: 17 | AC54: 29 | AD54: 14 | AE54: 9 | AF54: 23 | AG54: 11 | AH54: 12 | AI54: 23 | AJ54: 10 | AK54: 8 | AL54: 18 | AM54: 14 | AN54: 10 | AO54: 24 | AP54: 8 | AQ54: 17 | AR54: 25 | AS54: 106 | AT54: 114 | AU54: 220
B55: 02 | C55: Colón | D55: 01 | E55: Trujillo | F55: 08 | G55: Puerto Castilla | H55: 020100015 | I55: 14 DE AGOSTO | J55: PUERTO CASTILLA | K55: 4298079 | L55: Rural | M55: Oficial | N55: Hilda Marina Banegas Hernandez | O55: 11 | P55: 4 | Q55: 15 | R55: 12 | S55: 19 | T55: 31 | U55: 10 | V55: 13 | W55: 23 | X55: 13 | Y55: 23 | Z55: 36 | AA55: 19 | AB55: 22 | AC55: 41 | AD55: 17 | AE55: 20 | AF55: 37 | AG55: 24 | AH55: 17 | AI55: 41 | AJ55: 20 | AK55: 7 | AL55: 27 | AM55: 17 | AN55: 20 | AO55: 37 | AP55: 12 | AQ55: 13 | AR55: 25 | AS55: 144 | AT55: 154 | AU55: 298
B56: 02 | C56: Colón | D56: 01 | E56: Trujillo | F56: 05 | G56: Ilanga | H56: 020100023 | I56: SAN JUAN BOSCO | J56: CHACALAPA | K56: 4385242 | L56: Rural | M56: Oficial | N56: DAVID PAZ SARMIENTO | O56: 8 | P56: 4 | Q56: 12 | R56: 14 | S56: 15 | T56: 29 | U56: 19 | V56: 28 | W56: 47 | X56: 15 | Y56: 19 | Z56: 34 | AA56: 10 | AB56: 35 | AC56: 45 | AD56: 25 | AE56: 21 | AF56: 46 | AG56: 20 | AH56: 18 | AI56: 38 | AJ56: 13 | AK56: 9 | AL56: 22 | AM56: 12 | AN56: 2 | AO56: 14 | AP56: 8 | AQ56: 8 | AR56: 16 | AS56: 136 | AT56: 155 | AU56: 291
B57: 02 | C57: Colón | D57: 01 | E57: Trujillo | F57: 05 | G57: Ilanga | H57: 020100041 | I57: BENITO JUAREZ | J57: RIGORES | K57: 99795629 | L57: Rural | M57: Oficial | N57: ANGELICA FONSECA OYUELA | O57: 16 | P57: 3 | Q57: 19 | R57: 27 | S57: 27 | T57: 54 | U57: 26 | V57: 31 | W57: 57 | X57: 33 | Y57: 28 | Z57: 61 | AA57: 36 | AB57: 27 | AC57: 63 | AD57: 29 | AE57: 39 | AF57: 68 | AG57: 28 | AH57: 25 | AI57: 53 | AJ57: 27 | AK57: 30 | AL57: 57 | AM57: 22 | AN57: 19 | AO57: 41 | AP57: 32 | AQ57: 24 | AR57: 56 | AS57: 260 | AT57: 250 | AU57: 510
B58: 02 | C58: Colón | D58: 01 | E58: Trujillo | F58: 09 | G58: Trujillo | H58: 020100043 | I58: EL DESPERTAR | J58: SANTA LUCIA | K58: 94660098 | L58: Rural | M58: Oficial | N58: OLGA ARELY PINTO VALLE | O58: 13 | P58: 5 | Q58: 18 | R58: 33 | S58: 41 | T58: 74 | U58: 27 | V58: 37 | W58: 64 | X58: 35 | Y58: 53 | Z58: 88 | AA58: 30 | AB58: 34 | AC58: 64 | AD58: 33 | AE58: 21 | AF58: 54 | AG58: 33 | AH58: 21 | AI58: 54 | AJ58: 35 | AK58: 29 | AL58: 64 | AM58: 15 | AN58: 32 | AO58: 47 | AP58: 23 | AQ58: 20 | AR58: 43 | AS58: 264 | AT58: 288 | AU58: 552
B59: 02 | C59: Colón | D59: 01 | E59: Trujillo | F59: 01 | G59: Trujillo | H59: 020100048 | I59: ESCUELA BILINGÜE SANTA MARIA | J59: COLONIA LOS MAESTROS, PRIMERA ENTRADA | K59: 4343239 | L59: Urbana | M59: Privada | N59: KENIA EDICILIA FUNEZ SOSA | O59: 5 | P59: 7 | Q59: 12 | R59: 13 | S59: 7 | T59: 20 | U59: 17 | V59: 5 | W59: 22 | X59: 4 | Y59: 8 | Z59: 12 | AA59: 2 | AB59: 7 | AC59: 9 | AD59: 10 | AE59: 6 | AF59: 16 | AG59: 6 | AH59: 4 | AI59: 10 | AJ59: 8 | AK59: 5 | AL59: 13 | AM59: 5 | AN59: 3 | AO59: 8 | AP59: 10 | AQ59: 4 | AR59: 14 | AS59: 75 | AT59: 49 | AU59: 124
B60: 02 | C60: Colón | D60: 01 | E60: Trujillo | F60: 08 | G60: Trujillo | H60: 020100051 | I60: JAIRO AYALA | J60: GUADALUPE CARNEY | K60: 98825654 | L60: Rural | M60: Oficial | N60: WILMER CECILIO TROCHEZ MARTINEZ | O60: 14 | P60: 5 | Q60: 19 | R60: 42 | S60: 48 | T60: 90 | U60: 39 | V60: 68 | W60: 107 | X60: 41 | Y60: 52 | Z60: 93 | AA60: 38 | AB60: 51 | AC60: 89 | AD60: 41 | AE60: 34 | AF60: 75 | AG60: 36 | AH60: 18 | AI60: 54 | AJ60: 21 | AK60: 33 | AL60: 54 | AM60: 17 | AN60: 19 | AO60: 36 | AP60: 15 | AQ60: 13 | AR60: 28 | AS60: 290 | AT60: 336 | AU60: 626
B61: 02 | C61: Colón | D61: 01 | E61: Trujillo | F61: 06 | G61: Trujillo | H61: 020100059 | I61: 18 DE MAYO | J61: CAPIRO | K61: 97298033 | L61: Rural | M61: Oficial | N61: NIDIA DOLORES MARTINEZ ESPINOZA | O61: 13 | P61: 0 | Q61: 13 | R61: 23 | S61: 27 | T61: 50 | U61: 21 | V61: 23 | W61: 44 | X61: 16 | Y61: 30 | Z61: 46 | AA61: 28 | AB61: 27 | AC61: 55 | AD61: 15 | AE61: 23 | AF61: 38 | AG61: 18 | AH61: 19 | AI61: 37 | AJ61: 19 | AK61: 12 | AL61: 31 | AM61: 16 | AN61: 11 | AO61: 27 | AP61: 21 | AQ61: 15 | AR61: 36 | AS61: 177 | AT61: 187 | AU61: 364
B62: 02 | C62: Colón | D62: 01 | E62: Trujillo | F62: 03 | G62: Chapagua | H62: 020100060 | I62: 13 DE MAYO | J62: COOPERATIVA 25 DE ABRIL | K62: 99369893 | L62: Rural | M62: Oficial | N62: VICENTA TURCIOS CACERES | O62: 9 | P62: 2 | Q62: 11 | R62: 15 | S62: 13 | T62: 28 | U62: 13 | V62: 19 | W62: 32 | X62: 20 | Y62: 16 | Z62: 36 | AA62: 19 | AB62: 10 | AC62: 29 | AD62: 22 | AE62: 13 | AF62: 35 | AG62: 14 | AH62: 13 | AI62: 27 | AJ62: 24 | AK62: 26 | AL62: 50 | AM62: 30 | AN62: 27 | AO62: 57 | AP62: 18 | AQ62: 12 | AR62: 30 | AS62: 175 | AT62: 149 | AU62: 324
B63: 02 | C63: Colón | D63: 01 | E63: Trujillo | F63: 01 | G63: Trujillo | H63: 020100092 | I63: MATILDE CORDOVA DE SUAZO | J63: COLONIA EDUARDO CASTILLO, CALLE PRINCIPAL | K63: 4344153 | L63: Urbana | M63: Oficial | N63: WALTER LORENZO ESTRADA TIZADO | O63: 12 | P63: 8 | Q63: 20 | R63: 10 | S63: 10 | T63: 20 | U63: 12 | V63: 13 | W63: 25 | X63: 10 | Y63: 14 | Z63: 24 | AA63: 12 | AB63: 12 | AC63: 24 | AD63: 15 | AE63: 18 | AF63: 33 | AG63: 17 | AH63: 2 | AI63: 19 | AJ63: 51 | AK63: 33 | AL63: 84 | AM63: 56 | AN63: 21 | AO63: 77 | AP63: 61 | AQ63: 29 | AR63: 90 | AS63: 244 | AT63: 152 | AU63: 396
B64: 02 | C64: Colón | D64: 01 | E64: Trujillo | F64: 05 | G64: Ilanga | H64: 020100110 | I64: CLAUDINA AGUILAR OCHOA | J64: EL COCO | K64: 4385241 | L64: Rural | M64: Oficial | N64: MARCO AURELIO GUARDADO ALAS | O64: 11 | P64: 2 | Q64: 13 | R64: 16 | S64: 17 | T64: 33 | U64: 18 | V64: 16 | W64: 34 | X64: 12 | Y64: 21 | Z64: 33 | AA64: 22 | AB64: 25 | AC64: 47 | AD64: 18 | AE64: 13 | AF64: 31 | AG64: 18 | AH64: 14 | AI64: 32 | AJ64: 22 | AK64: 18 | AL64: 40 | AM64: 19 | AN64: 18 | AO64: 37 | AP64: 12 | AQ64: 10 | AR64: 22 | AS64: 157 | AT64: 152 | AU64: 309
B65: 02 | C65: Colón | D65: 02 | E65: Balfate | F65: 16 | G65: Río Coco | H65: 020200008 | I65: ATENEA | J65: RIO COCO | K65: 98163300 | L65: Rural | M65: Oficial | N65: ZULEMA PATRICIA CORNEJO GARCIA | O65: 5 | P65: 2 | Q65: 7 | R65: 14 | S65: 14 | T65: 28 | U65: 9 | V65: 23 | W65: 32 | X65: 17 | Y65: 6 | Z65: 23 | AA65: 17 | AB65: 13 | AC65: 30 | AD65: 12 | AE65: 14 | AF65: 26 | AG65: 12 | AH65: 10 | AI65: 22 | AJ65: 17 | AK65: 14 | AL65: 31 | AM65: 4 | AN65: 1 | AO65: 5 | AP65: 7 | AQ65: 2 | AR65: 9 | AS65: 109 | AT65: 97 | AU65: 206
B66: 02 | C66: Colón | D66: 02 | E66: Balfate | F66: 05 | G66: El Cenizo | H66: 020200012 | I66: LUZ DEL ATLANTICO | J66: CENIZO | K66: 95177064 | L66: Rural | M66: Oficial | N66: Clibia Maritza martinez Colindres | O66: 2 | P66: 3 | Q66: 5 | R66: 7 | S66: 4 | T66: 11 | U66: 4 | V66: 2 | W66: 6 | X66: 5 | Y66: 7 | Z66: 12 | AA66: 1 | AB66: 4 | AC66: 5 | AD66: 2 | AE66: 4 | AF66: 6 | AG66: 1 | AH66: 6 | AI66: 7 | AJ66: 7 | AK66: 1 | AL66: 8 | AM66: 9 | AN66: 4 | AO66: 13 | AP66: 1 | AQ66: 3 | AR66: 4 | AS66: 37 | AT66: 35 | AU66: 72
B67: 02 | C67: Colón | D67: 02 | E67: Balfate | F67: 13 | G67: Lis Lis | H67: 020200013 | I67: PRIMAVERA | J67: LIS LIS | K67: 4080970 | L67: Rural | M67: Oficial | N67: BESSY YESSENIA FLORES RODAS | O67: 6 | P67: 3 | Q67: 9 | R67: 15 | S67: 18 | T67: 33 | U67: 16 | V67: 15 | W67: 31 | X67: 16 | Y67: 23 | Z67: 39 | AA67: 16 | AB67: 13 | AC67: 29 | AD67: 25 | AE67: 15 | AF67: 40 | AG67: 14 | AH67: 9 | AI67: 23 | AJ67: 9 | AK67: 9 | AL67: 18 | AM67: 9 | AN67: 7 | AO67: 16 | AP67: 10 | AQ67: 3 | AR67: 13 | AS67: 130 | AT67: 112 | AU67: 242
B68: 02 | C68: Colón | D68: 02 | E68: Balfate | F68: 12 | G68: Limera | H68: 020200015 | I68: JUANLINDO | J68: LIMERA | K68: 97430877 | L68: Rural | M68: Oficial | N68: BRENDA LORENA DIAZ YANEZ | O68: 6 | P68: 1 | Q68: 7 | R68: 8 | S68: 15 | T68: 23 | U68: 7 | V68: 13 | W68: 20 | X68: 9 | Y68: 9 | Z68: 18 | AA68: 11 | AB68: 12 | AC68: 23 | AD68: 7 | AE68: 7 | AF68: 14 | AG68: 5 | AH68: 6 | AI68: 11 | AJ68: 12 | AK68: 6 | AL68: 18 | AM68: 10 | AN68: 6 | AO68: 16 | AP68: 17 | AQ68: 12 | AR68: 29 | AS68: 86 | AT68: 86 | AU68: 172
B69: 02 | C69: Colón | D69: 03 | E69: Iriona | F69: 03 | G69: Cusuna | H69: 020300001 | I69: RODOLFO ROJAS | J69: CUSUNA | K69: 87920888 | L69: Rural | M69: Oficial | N69: Hector Daniel Velasques Batis | O69: 12 | P69: 3 | Q69: 15 | R69: 23 | S69: 18 | T69: 41 | U69: 13 | V69: 14 | W69: 27 | X69: 22 | Y69: 28 | Z69: 50 | AA69: 22 | AB69: 28 | AC69: 50 | AD69: 31 | AE69: 31 | AF69: 62 | AG69: 23 | AH69: 43 | AI69: 66 | AJ69: 21 | AK69: 14 | AL69: 35 | AM69: 25 | AN69: 21 | AO69: 46 | AP69: 17 | AQ69: 10 | AR69: 27 | AS69: =R69+U69+X69+AA69+AD69+AG69+AJ69+AM69+AP69 -> 197 | AT69: 207 | AU69: 404
B70: 02 | C70: Colón | D70: 03 | E70: Iriona | F70: 02 | G70: Ciriboya | H70: 020300003 | I70: ALVARO CONTRERAS | J70: CIRIBOYA | K70: 89675331 | L70: Rural | M70: Oficial | N70: Roberto Ruiz Alvares | O70: 5 | P70: 4 | Q70: 9 | R70: 14 | S70: 9 | T70: 23 | U70: 3 | V70: 9 | W70: 12 | X70: 10 | Y70: 11 | Z70: 21 | AA70: 11 | AB70: 15 | AC70: 26 | AD70: 12 | AE70: 18 | AF70: 30 | AG70: 11 | AH70: 6 | AI70: 17 | AJ70: 6 | AK70: 14 | AL70: 20 | AM70: 4 | AN70: 10 | AO70: 14 | AP70: 12 | AQ70: 15 | AR70: 27 | AS70: 83 | AT70: 107 | AU70: 190
B71: 02 | C71: Colón | D71: 03 | E71: Iriona | F71: 10 | G71: Sico | H71: 020300009 | I71: RAMON ROSA | J71: SAMBITA | K71: 97053087 | L71: Rural | M71: Oficial | N71: Wesly Eufemio Aquino Ordoñez | O71: 3 | P71: 4 | Q71: 7 | R71: 6 | S71: 4 | T71: 10 | U71: 6 | V71: 13 | W71: 19 | X71: 9 | Y71: 10 | Z71: 19 | AA71: 11 | AB71: 9 | AC71: 20 | AD71: 12 | AE71: 2 | AF71: 14 | AG71: 6 | AH71: 10 | AI71: 16 | AJ71: 7 | AK71: 3 | AL71: 10 | AM71: 9 | AN71: 7 | AO71: 16 | AP71: 5 | AQ71: 8 | AR71: 13 | AS71: 71 | AT71: 66 | AU71: 137
B72: 02 | C72: Colón | D72: 03 | E72: Iriona | F72: 10 | G72: Sico | H72: 020300010 | I72: LA FRATERNIDAD | J72: EL CASTILLO | L72: Rural | M72: Oficial | N72: Edis Noel Guzman Duarte | O72: 3 | P72: 4 | Q72: 7 | R72: 11 | S72: 19 | T72: 30 | U72: 11 | V72: 18 | W72: 29 | X72: 11 | Y72: 15 | Z72: 26 | AA72: 11 | AB72: 9 | AC72: 20 | AD72: 13 | AE72: 22 | AF72: 35 | AG72: 9 | AH72: 13 | AI72: 22 | AJ72: 11 | AK72: 8 | AL72: 19 | AM72: 10 | AN72: 6 | AO72: 16 | AP72: 12 | AQ72: 2 | AR72: 14 | AS72: 99 | AT72: 112 | AU72: 211
B73: 02 | C73: Colón | D73: 03 | E73: Iriona | F73: 08 | G73: San José de La Punta | H73: 020300011 | I73: CARLOTA GONZALES V | J73: IRIONA | K73: 98748424 | L73: Rural | M73: Oficial | N73: Claudia Mejia Morales | O73: 7 | P73: 1 | Q73: 8 | R73: 12 | S73: 9 | T73: 21 | U73: 6 | V73: 6 | W73: 12 | X73: 7 | Y73: 11 | Z73: 18 | AA73: 8 | AB73: 26 | AC73: 34 | AD73: 15 | AE73: 19 | AF73: 34 | AG73: 12 | AH73: 17 | AI73: 29 | AJ73: 10 | AK73: 14 | AL73: 24 | AM73: 14 | AN73: 19 | AO73: 33 | AP73: 9 | AQ73: 11 | AR73: 20 | AS73: 93 | AT73: 132 | AU73: 225
B74: 02 | C74: Colón | D74: 03 | E74: Iriona | F74: 11 | G74: Tocamacho | H74: 020300012 | I74: JUAN LINDO | J74: TOCAMACHO | L74: Rural | M74: Oficial | N74: Arnulfo Mejia Zelaya | O74: 7 | P74: 7 | Q74: 14 | R74: 14 | S74: 14 | T74: 28 | U74: 18 | V74: 12 | W74: 30 | X74: 28 | Y74: 16 | Z74: 44 | AA74: 25 | AB74: 23 | AC74: 48 | AD74: 23 | AE74: 28 | AF74: 51 | AG74: 17 | AH74: 25 | AI74: 42 | AJ74: 26 | AK74: 14 | AL74: 40 | AM74: 16 | AN74: 18 | AO74: 34 | AP74: 18 | AQ74: 19 | AR74: 37 | AS74: 185 | AT74: 169 | AU74: 354
B75: 02 | C75: Colón | D75: 03 | E75: Iriona | F75: 07 | G75: Punta de Piedra | H75: 020300015 | I75: JOSE CECILIO DEL VALLE | J75: PUNTA PIEDRA | L75: Rural | M75: Oficial | N75: Eugenio Rodriguez Bernandez | O75: 10 | P75: 4 | Q75: 14 | R75: 18 | S75: 16 | T75: 34 | U75: 26 | V75: 22 | W75: 48 | X75: 18 | Y75: 24 | Z75: 42 | AA75: 26 | AB75: 32 | AC75: 58 | AD75: 24 | AE75: 37 | AF75: 61 | AG75: 25 | AH75: 33 | AI75: 58 | AJ75: 20 | AK75: 14 | AL75: 34 | AM75: 20 | AN75: 24 | AO75: 44 | AP75: 25 | AQ75: 17 | AR75: 42 | AS75: 202 | AT75: 219 | AU75: 421
B76: 02 | C76: Colón | D76: 03 | E76: Iriona | F76: 05 | G76: Las Champas u Ocotales | H76: 020300016 | I76: PRECENTACION CENTENO | J76: OCOTALES | K76: 97277428 | L76: Rural | M76: Oficial | N76: Carmelo Valladares Martinez | O76: 5 | P76: 3 | Q76: 8 | R76: 14 | S76: 17 | T76: 31 | U76: 16 | V76: 15 | W76: 31 | X76: 11 | Y76: 15 | Z76: 26 | AA76: 10 | AB76: 8 | AC76: 18 | AD76: 9 | AE76: 12 | AF76: 21 | AG76: 11 | AH76: 14 | AI76: 25 | AJ76: 20 | AK76: 20 | AL76: 40 | AM76: 17 | AN76: 12 | AO76: 29 | AP76: 15 | AQ76: 12 | AR76: 27 | AS76: 123 | AT76: 125 | AU76: 248
B77: 02 | C77: Colón | D77: 03 | E77: Iriona | F77: 05 | G77: Las Champas u Ocotales | H77: 020300050 | I77: JUAN AMBROSIO SABIO CACHO | J77: Jardines de la Sierra | L77: Rural | M77: Oficial | N77: Edil Daniel Mendez Mejia | O77: 2 | P77: 4 | Q77: 6 | R77: 7 | S77: 7 | T77: 14 | U77: 8 | V77: 5 | W77: 13 | X77: 2 | Y77: 4 | Z77: 6 | AA77: 4 | AB77: 7 | AC77: 11 | AD77: 5 | AE77: 6 | AF77: 11 | AG77: 2 | AH77: 6 | AI77: 8 | AJ77: 2 | AK77: 7 | AL77: 9 | AM77: 3 | AN77: 5 | AO77: 8 | AP77: 8 | AQ77: 6 | AR77: 14 | AS77: 41 | AT77: 53 | AU77: 94
B78: 02 | C78: Colón | D78: 04 | E78: Limon | F78: 03 | G78: Vallecito | H78: 020400005 | I78: SILVERIO HERNANDEZ TINGLOS | J78: FLORES DE ORIENTE TINGLAS | K78: 98625680 | L78: Rural | M78: Oficial | N78: DORA ANTONIA ZUNIGA NUNEZ | O78: 12 | P78: 2 | Q78: 14 | R78: 21 | S78: 20 | T78: 41 | U78: 22 | V78: 32 | W78: 54 | X78: 37 | Y78: 33 | Z78: 70 | AA78: 22 | AB78: 26 | AC78: 48 | AD78: 24 | AE78: 30 | AF78: 54 | AG78: 35 | AH78: 18 | AI78: 53 | AJ78: 31 | AK78: 13 | AL78: 44 | AM78: 21 | AN78: 7 | AO78: 28 | AP78: 8 | AQ78: 12 | AR78: 20 | AS78: 221 | AT78: 191 | AU78: 412
B79: 02 | C79: Colón | D79: 04 | E79: Limon | F79: 02 | G79: Francia | H79: 020400008 | I79: JOSE CECILIO DEL VALLE | J79: FRANCIA | L79: Rural | M79: Oficial | N79: ENRIQUE NORALES FIGUEROA | O79: 10 | P79: 4 | Q79: 14 | R79: 24 | S79: 22 | T79: 46 | U79: 14 | V79: 23 | W79: 37 | X79: 16 | Y79: 24 | Z79: 40 | AA79: 16 | AB79: 13 | AC79: 29 | AD79: 18 | AE79: 13 | AF79: 31 | AG79: 13 | AH79: 16 | AI79: 29 | AJ79: 14 | AK79: 6 | AL79: 20 | AM79: 6 | AN79: 6 | AO79: 12 | AP79: 5 | AQ79: 9 | AR79: 14 | AS79: 126 | AT79: 132 | AU79: 258
B80: 02 | C80: Colón | D80: 05 | E80: Saba | F80: 02 | G80: Barranco Chele | H80: 020500008 | I80: ROGELIO PINEDA NUÑEZ | J80: BARRANCO CHELE | K80: 95662676 | L80: Rural | M80: Oficial | N80: CARLOS ROBERTO ZAVALA MARTINEZ | O80: 7 | P80: 3 | Q80: 10 | R80: 15 | S80: 16 | T80: 31 | U80: 15 | V80: 14 | W80: 29 | X80: 19 | Y80: 15 | Z80: 34 | AA80: 22 | AB80: 24 | AC80: 46 | AD80: 14 | AE80: 8 | AF80: 22 | AG80: 16 | AH80: 19 | AI80: 35 | AJ80: 15 | AK80: 9 | AL80: 24 | AM80: 14 | AN80: 9 | AO80: 23 | AP80: 19 | AQ80: 8 | AR80: 27 | AS80: 149 | AT80: 122 | AU80: 271
B81: 02 | C81: Colón | D81: 05 | E81: Saba | F81: 01 | G81: Sabá | H81: 020500036 | I81: NAPOLION ARIAS CRISTALES | J81: LUCIA | K81: 99458830 | L81: Rural | M81: Oficial | N81: HILDA MARINA ROSALES RODRIGUEZ | O81: 8 | P81: 2 | Q81: 10 | R81: 16 | S81: 14 | T81: 30 | U81: 19 | V81: 14 | W81: 33 | X81: 16 | Y81: 17 | Z81: 33 | AA81: 14 | AB81: 9 | AC81: 23 | AD81: 20 | AE81: 15 | AF81: 35 | AG81: 11 | AH81: 11 | AI81: 22 | AJ81: 15 | AK81: 23 | AL81: 38 | AM81: 8 | AN81: 7 | AO81: 15 | AP81: 18 | AQ81: 7 | AR81: 25 | AS81: 137 | AT81: 117 | AU81: 254
B82: 02 | C82: Colón | D82: 05 | E82: Saba | F82: 07 | G82: Ceibita | H82: 020500037 | I82: PERLA DEL AGUAN | J82: CEIBITA | K82: 99018139 | L82: Rural | M82: Oficial | N82: GINA MARIELA ALMENDAREZ RODRIGUEZ | O82: 7 | P82: 1 | Q82: 8 | R82: 8 | S82: 14 | T82: 22 | U82: 19 | V82: 16 | W82: 35 | X82: 12 | Y82: 9 | Z82: 21 | AA82: 11 | AB82: 10 | AC82: 21 | AD82: 10 | AE82: 16 | AF82: 26 | AG82: 9 | AH82: 5 | AI82: 14 | AJ82: 7 | AK82: 8 | AL82: 15 | AM82: 4 | AN82: 5 | AO82: 9 | AP82: 2 | AQ82: 5 | AR82: 7 | AS82: 82 | AT82: 88 | AU82: 170
B83: 02 | C83: Colón | D83: 05 | E83: Saba | F83: 09 | G83: El Achiote | H83: 020500048 | I83: JOSE TRINIDAD CABAÑAS | J83: ACHIOTE, BARRIO EL CENTRO | K83: 98883082 | L83: Rural | M83: Oficial | N83: MIRTA RAMONA AVILA | O83: 9 | P83: 3 | Q83: 12 | R83: 30 | S83: 24 | T83: 54 | U83: 21 | V83: 11 | W83: 32 | X83: 26 | Y83: 34 | Z83: 60 | AA83: 16 | AB83: 15 | AC83: 31 | AD83: 15 | AE83: 16 | AF83: 31 | AG83: 17 | AH83: 24 | AI83: 41 | AJ83: 20 | AK83: 18 | AL83: 38 | AM83: 29 | AN83: 14 | AO83: 43 | AP83: 16 | AQ83: 21 | AR83: 37 | AS83: 190 | AT83: 177 | AU83: 367
B84: 02 | C84: Colón | D84: 06 | E84: Santa fe | F84: 03 | G84: Plan Grande | H84: 020600012 | I84: ATENEA | J84: QUINITO, SANTA FE | L84: Rural | M84: Oficial | N84: Indira Marllery Figueroa Avila | O84: 4 | P84: 2 | Q84: 6 | R84: 3 | S84: 2 | T84: 5 | U84: 8 | V84: 4 | W84: 12 | X84: 6 | Y84: 1 | Z84: 7 | AA84: 6 | AB84: 4 | AC84: 10 | AD84: 5 | AE84: 3 | AF84: 8 | AG84: 5 | AH84: 5 | AI84: 10 | AJ84: 6 | AK84: 15 | AL84: 21 | AM84: 8 | AN84: 8 | AO84: 16 | AP84: 8 | AQ84: 9 | AR84: 17 | AS84: 55 | AT84: 51 | AU84: 106
B85: 02 | C85: Colón | D85: 07 | E85: Santa Rosa de Aguan | F85: 01 | G85: Santa Rosa de Aguán | H85: 020700005 | I85: LA AURORA | J85: DOS BOCAS | K85: 4080851 | L85: Rural | M85: Oficial | N85: ORLEN OMAR ANTUNEZ HERNANDEZ | O85: 15 | P85: 3 | Q85: 18 | R85: 45 | S85: 37 | T85: 82 | U85: 25 | V85: 39 | W85: 64 | X85: 49 | Y85: 40 | Z85: 89 | AA85: 42 | AB85: 26 | AC85: 68 | AD85: 32 | AE85: 20 | AF85: 52 | AG85: 26 | AH85: 28 | AI85: 54 | AJ85: 18 | AK85: 19 | AL85: 37 | AM85: 7 | AN85: 13 | AO85: 20 | AP85: 12 | AQ85: 16 | AR85: 28 | AS85: 256 | AT85: 238 | AU85: 494
B86: 02 | C86: Colón | D86: 08 | E86: Sonaguera | F86: 31 | G86: Los Planes | H86: 020800006 | I86: ALVARO CONTRERAS | J86: LOS PLANES | K86: 95476960 | L86: Rural | M86: Oficial | N86: Mirna Araceli Ramírez Rosales | O86: 6 | P86: 5 | Q86: 11 | R86: 18 | S86: 19 | T86: 37 | U86: 15 | V86: 13 | W86: 28 | X86: 16 | Y86: 8 | Z86: 24 | AA86: 14 | AB86: 12 | AC86: 26 | AD86: 25 | AE86: 13 | AF86: 38 | AG86: 17 | AH86: 16 | AI86: 33 | AJ86: 31 | AK86: 22 | AL86: 53 | AM86: 21 | AN86: 26 | AO86: 47 | AP86: 18 | AQ86: 16 | AR86: 34 | AS86: 175 | AT86: 145 | AU86: 320
B87: 02 | C87: Colón | D87: 08 | E87: Sonaguera | F87: 20 | G87: Juan Lázaro Abajo o San Jose d | H87: 020800010 | I87: JOSE CECILIO DEL VALLE | J87: EL SASTRE | K87: 99273426 | L87: Rural | M87: Oficial | N87: Leticia Nohemy Martínez Melendez | O87: 7 | P87: 3 | Q87: 10 | R87: 10 | S87: 13 | T87: 23 | U87: 21 | V87: 19 | W87: 40 | X87: 8 | Y87: 12 | Z87: 20 | AA87: 16 | AB87: 17 | AC87: 33 | AD87: 17 | AE87: 23 | AF87: 40 | AG87: 13 | AH87: 8 | AI87: 21 | AJ87: 18 | AK87: 16 | AL87: 34 | AM87: 19 | AN87: 16 | AO87: 35 | AP87: 18 | AQ87: 12 | AR87: 30 | AS87: 140 | AT87: 136 | AU87: 276
B88: 02 | C88: Colón | D88: 08 | E88: Sonaguera | F88: 22 | G88: La Curva de Isletas | H88: 020800012 | I88: PEDRO NUFIO | J88: LA CURVA DE ISLETA | K88: 97199491 | L88: Rural | M88: Oficial | N88: Blanca Marina Urbina Euceda | O88: 8 | P88: 2 | Q88: 10 | R88: 11 | S88: 14 | T88: 25 | U88: 18 | V88: 15 | W88: 33 | X88: 10 | Y88: 20 | Z88: 30 | AA88: 18 | AB88: 9 | AC88: 27 | AD88: 16 | AE88: 14 | AF88: 30 | AG88: 16 | AH88: 19 | AI88: 35 | AJ88: 12 | AK88: 11 | AL88: 23 | AM88: 13 | AN88: 6 | AO88: 19 | AP88: 7 | AQ88: 6 | AR88: 13 | AS88: 121 | AT88: 114 | AU88: 235
B89: 02 | C89: Colón | D89: 08 | E89: Sonaguera | F89: 27 | G89: Lorelay | H89: 020800014 | I89: MIGUEL MORAZAN | J89: LORELAY | L89: Rural | M89: Oficial | N89: Grace Ivonne Rodriguez Romero | O89: 9 | P89: 1 | Q89: 10 | R89: 12 | S89: 12 | T89: 24 | U89: 10 | V89: 16 | W89: 26 | X89: 16 | Y89: 17 | Z89: 33 | AA89: 12 | AB89: 17 | AC89: 29 | AD89: 13 | AE89: 13 | AF89: 26 | AG89: 9 | AH89: 11 | AI89: 20 | AJ89: 22 | AK89: 25 | AL89: 47 | AM89: 11 | AN89: 11 | AO89: 22 | AP89: 9 | AQ89: 4 | AR89: 13 | AS89: 114 | AT89: 126 | AU89: 240
B90: 02 | C90: Colón | D90: 08 | E90: Sonaguera | F90: 36 | G90: Quebrada de Arena | H90: 020800015 | I90: OSCAR A FLORES | J90: QUEBRADA DE ARENA | K90: 97328670 | L90: Rural | M90: Oficial | N90: Jose Ovidio Bardales Nuñez | O90: 7 | P90: 4 | Q90: 11 | R90: 21 | S90: 27 | T90: 48 | U90: 23 | V90: 19 | W90: 42 | X90: 23 | Y90: 17 | Z90: 40 | AA90: 27 | AB90: 11 | AC90: 38 | AD90: 21 | AE90: 13 | AF90: 34 | AG90: 13 | AH90: 13 | AI90: 26 | AJ90: 17 | AK90: 18 | AL90: 35 | AM90: 12 | AN90: 5 | AO90: 17 | AP90: 12 | AQ90: 10 | AR90: 22 | AS90: 169 | AT90: 133 | AU90: 302
B91: 02 | C91: Colón | D91: 08 | E91: Sonaguera | F91: 01 | G91: Sonaguera | H91: 020800028 | I91: LUIS LANDA | J91: EL OLVIDO, COL. MORAZAN | K91: 95275503 | L91: Rural | M91: Oficial | N91: Jose Reinaldo Gonzales | O91: 15 | P91: 2 | Q91: 17 | R91: 39 | S91: 38 | T91: 77 | U91: 22 | V91: 42 | W91: 64 | X91: 31 | Y91: 41 | Z91: 72 | AA91: 25 | AB91: 38 | AC91: 63 | AD91: 36 | AE91: 28 | AF91: 64 | AG91: 20 | AH91: 20 | AI91: 40 | AJ91: 32 | AK91: 22 | AL91: 54 | AM91: 18 | AN91: 17 | AO91: 35 | AP91: 17 | AQ91: 13 | AR91: 30 | AS91: 240 | AT91: 259 | AU91: 499
B92: 02 | C92: Colón | D92: 08 | E92: Sonaguera | F92: 39 | G92: Sabana de Utila | H92: 020800033 | I92: JOAQUIN REYES TEJEDA | J92: SABANA DE UTILA | K92: 97559531 | L92: Rural | M92: Oficial | N92: Lesli Aleida Matute Oviedo | O92: 8 | P92: 2 | Q92: 10 | R92: 14 | S92: 24 | T92: 38 | U92: 14 | V92: 16 | W92: 30 | X92: 18 | Y92: 18 | Z92: 36 | AA92: 20 | AB92: 10 | AC92: 30 | AD92: 22 | AE92: 15 | AF92: 37 | AG92: 11 | AH92: 11 | AI92: 22 | AJ92: 17 | AK92: 13 | AL92: 30 | AM92: 15 | AN92: 1 | AO92: 16 | AP92: 14 | AQ92: 5 | AR92: 19 | AS92: 145 | AT92: 113 | AU92: 258
B93: 02 | C93: Colón | D93: 08 | E93: Sonaguera | F93: 09 | G93: Churrusquera | H93: 020800073 | I93: NUEVO AMANECER | J93: LA HILARIA | K93: 99325456 | L93: Rural | M93: Oficial | N93: Elsy Judith Bardales Chávez | O93: 6 | P93: 4 | Q93: 10 | R93: 13 | S93: 7 | T93: 20 | U93: 14 | V93: 9 | W93: 23 | X93: 13 | Y93: 18 | Z93: 31 | AA93: 11 | AB93: 10 | AC93: 21 | AD93: 9 | AE93: 7 | AF93: 16 | AG93: 5 | AH93: 14 | AI93: 19 | AJ93: 26 | AK93: 6 | AL93: 32 | AM93: 11 | AN93: 10 | AO93: 21 | AP93: 19 | AQ93: 13 | AR93: 32 | AS93: 121 | AT93: 94 | AU93: 215
B94: 02 | C94: Colón | D94: 09 | E94: Tocoa | F94: 06 | G94: Tocoa | H94: 020900004 | I94: CENTRO AMERICA | J94: GUAPINOL | K94: 99792840 | L94: Rural | M94: Oficial | N94: Gloria Estela Del Cid Hernandez | O94: 17 | P94: 5 | Q94: 22 | R94: 25 | S94: 41 | T94: 66 | U94: 29 | V94: 38 | W94: 67 | X94: 31 | Y94: 39 | Z94: 70 | AA94: 27 | AB94: 31 | AC94: 58 | AD94: 21 | AE94: 28 | AF94: 49 | AG94: 28 | AH94: 30 | AI94: 58 | AJ94: 20 | AK94: 22 | AL94: 42 | AM94: 20 | AN94: 19 | AO94: 39 | AP94: 34 | AQ94: 23 | AR94: 57 | AS94: 235 | AT94: 271 | AU94: 506
B95: 02 | C95: Colón | D95: 09 | E95: Tocoa | F95: 09 | G95: Tocoa | H95: 020900007 | I95: TESORO INFANTIL | J95: CEIBITA | K95: 98011058 | L95: Rural | M95: Oficial | N95: Lucas Antonio Padilla Castillo | O95: 16 | P95: 3 | Q95: 19 | R95: 51 | S95: 38 | T95: 89 | U95: 51 | V95: 55 | W95: 106 | X95: 58 | Y95: 40 | Z95: 98 | AA95: 37 | AB95: 45 | AC95: 82 | AD95: 44 | AE95: 39 | AF95: 83 | AG95: 37 | AH95: 32 | AI95: 69 | AJ95: 42 | AK95: 18 | AL95: 60 | AM95: 18 | AN95: 10 | AO95: 28 | AP95: 19 | AQ95: 8 | AR95: 27 | AS95: 357 | AT95: 285 | AU95: 642
B96: 02 | C96: Colón | D96: 09 | E96: Tocoa | F96: 01 | G96: Tocoa | H96: 020900008 | I96: PAULO FREIRE | J96: BARRIO MANGASECA | K96: 4441108 | L96: Urbana | M96: Oficial | N96: SONIA MARCIA SERRANO CRUZ | O96: 21 | P96: 6 | Q96: 27 | R96: 51 | S96: 41 | T96: 92 | U96: 37 | V96: 48 | W96: 85 | X96: 33 | Y96: 45 | Z96: 78 | AA96: 53 | AB96: 51 | AC96: 104 | AD96: 45 | AE96: 43 | AF96: 88 | AG96: 31 | AH96: 41 | AI96: 72 | AJ96: 40 | AK96: 40 | AL96: 80 | AM96: 25 | AN96: 19 | AO96: 44 | AP96: 24 | AQ96: 13 | AR96: 37 | AS96: 339 | AT96: 341 | AU96: 680
B97: 02 | C97: Colón | D97: 09 | E97: Tocoa | F97: 13 | G97: Prieta | H97: 020900011 | I97: RAMON MONTOYA | J97: PRIETA | K97: 4248438 | L97: Rural | M97: Oficial | N97: Melba Cruz Martinez | O97: 7 | P97: 4 | Q97: 11 | R97: 14 | S97: 12 | T97: 26 | U97: 11 | V97: 18 | W97: 29 | X97: 17 | Y97: 20 | Z97: 37 | AA97: 9 | AB97: 8 | AC97: 17 | AD97: 13 | AE97: 11 | AF97: 24 | AG97: 16 | AH97: 23 | AI97: 39 | AJ97: 21 | AK97: 14 | AL97: 35 | AM97: 17 | AN97: 14 | AO97: 31 | AP97: 8 | AQ97: 8 | AR97: 16 | AS97: 126 | AT97: 128 | AU97: 254
B98: 02 | C98: Colón | D98: 09 | E98: Tocoa | F98: 17 | G98: Taujica | H98: 020900020 | I98: RAMON ROSA | J98: TAUJICA | L98: Rural | M98: Oficial | N98: Paula Waleska Bermudez Montalvan | O98: 7 | P98: 5 | Q98: 12 | R98: 25 | S98: 25 | T98: 50 | U98: 33 | V98: 25 | W98: 58 | X98: 25 | Y98: 18 | Z98: 43 | AA98: 19 | AB98: 12 | AC98: 31 | AD98: 13 | AE98: 15 | AF98: 28 | AG98: 14 | AH98: 16 | AI98: 30 | AJ98: 36 | AK98: 20 | AL98: 56 | AM98: 33 | AN98: 25 | AO98: 58 | AP98: 30 | AQ98: 17 | AR98: 47 | AS98: 228 | AT98: 173 | AU98: 401
B99: 02 | C99: Colón | D99: 09 | E99: Tocoa | F99: 01 | G99: Tocoa | H99: 020900021 | I99: JUANA DONATILA RUIZ | J99: COLONIA AURORA | K99: 24443939 | L99: Rural | M99: Oficial | N99: Jorge Alberto Banegas Hernandez | O99: 4 | P99: 5 | Q99: 9 | R99: 20 | S99: 15 | T99: 35 | U99: 23 | V99: 15 | W99: 38 | X99: 10 | Y99: 20 | Z99: 30 | AA99: 27 | AB99: 24 | AC99: 51 | AD99: 12 | AE99: 10 | AF99: 22 | AG99: 10 | AH99: 11 | AI99: 21 | AJ99: 19 | AK99: 10 | AL99: 29 | AM99: 13 | AN99: 10 | AO99: 23 | AP99: 10 | AQ99: 12 | AR99: 22 | AS99: 144 | AT99: 127 | AU99: 271
B100: 02 | C100: Colón | D100: 09 | E100: Tocoa | F100: 11 | G100: Tocoa | H100: 020900023 | I100: HIBUERAS | J100: LAS MANGAS | K100: 95935196 | L100: Rural | M100: Oficial | N100: GRSI JANETH MARTINEZ MARTINEZ | O100: 4 | P100: 3 | Q100: 7 | R100: 8 | S100: 14 | T100: 22 | U100: 14 | V100: 18 | W100: 32 | X100: 11 | Y100: 10 | Z100: 21 | AA100: 17 | AB100: 20 | AC100: 37 | AD100: 15 | AE100: 12 | AF100: 27 | AG100: 8 | AH100: 4 | AI100: 12 | AJ100: 6 | AK100: 6 | AL100: 12 | AM100: 2 | AN100: 0 | AO100: 2 | AP100: 1 | AQ100: 4 | AR100: 5 | AS100: 82 | AT100: 88 | AU100: 170
B101: 02 | C101: Colón | D101: 09 | E101: Tocoa | F101: 17 | G101: Tocoa | H101: 020900026 | I101: 14 DE AGOSTO | J101: COL. SUYAPA | L101: Rural | M101: Oficial | N101: Rosa Marina Sorto Hernandez | O101: 0 | P101: 0 | Q101: 0 | R101: 14 | S101: 8 | T101: 22 | U101: 7 | V101: 5 | W101: 12 | X101: 8 | Y101: 8 | Z101: 16 | AA101: 5 | AB101: 7 | AC101: 12 | AD101: 5 | AE101: 5 | AF101: 10 | AG101: 4 | AH101: 9 | AI101: 13 | AJ101: 9 | AK101: 8 | AL101: 17 | AM101: 3 | AN101: 8 | AO101: 11 | AP101: 7 | AQ101: 8 | AR101: 15 | AS101: 62 | AT101: 66 | AU101: 128
B102: 02 | C102: Colón | D102: 09 | E102: Tocoa | F102: 08 | G102: La Abisinia | H102: 020900034 | I102: ALFONZO BERGANZA DERAS | J102: LA ABICINIA | K102: 99237178 | L102: Rural | M102: Oficial | N102: MARINA DEL CARMEN FUENTES MATUTE | O102: 9 | P102: 4 | Q102: 13 | R102: 17 | S102: 25 | T102: 42 | U102: 29 | V102: 21 | W102: 50 | X102: 24 | Y102: 26 | Z102: 50 | AA102: 25 | AB102: 25 | AC102: 50 | AD102: 20 | AE102: 21 | AF102: 41 | AG102: 20 | AH102: 14 | AI102: 34 | AJ102: 29 | AK102: 15 | AL102: 44 | AM102: 20 | AN102: 15 | AO102: 35 | AP102: 25 | AQ102: 15 | AR102: 40 | AS102: 209 | AT102: 177 | AU102: 386
B103: 02 | C103: Colón | D103: 09 | E103: Tocoa | F103: 01 | G103: Tocoa | H103: 020900038 | I103: ROTARIO NO.1 | J103: COLONIA BUENA VISTA | K103: 4444520 | L103: Urbana | M103: Oficial | N103: RAMON AMILCAR CERNA | O103: 8 | P103: 7 | Q103: 15 | R103: 30 | S103: 45 | T103: 75 | U103: 42 | V103: 44 | W103: 86 | X103: 42 | Y103: 48 | Z103: 90 | AA103: 46 | AB103: 33 | AC103: 79 | AD103: 29 | AE103: 31 | AF103: 60 | AG103: 41 | AH103: 35 | AI103: 76 | AJ103: 11 | AK103: 5 | AL103: 16 | AM103: 25 | AN103: 4 | AO103: 29 | AP103: 18 | AQ103: 6 | AR103: 24 | AS103: 284 | AT103: 251 | AU103: 535
B104: 02 | C104: Colón | D104: 09 | E104: Tocoa | F104: 02 | G104: Tocoa | H104: 020900126 | I104: JOSE TRINIDAD CABAÑAS | J104: SECTOR SANPEDRO, ADELANTE DE TAPIQUIL | L104: Rural | M104: Oficial | N104: Alicia Flores Delcid | O104: 10 | P104: 1 | Q104: 11 | R104: 25 | S104: 22 | T104: 47 | U104: 19 | V104: 18 | W104: 37 | X104: 14 | Y104: 15 | Z104: 29 | AA104: 15 | AB104: 9 | AC104: 24 | AD104: 10 | AE104: 13 | AF104: 23 | AG104: 14 | AH104: 12 | AI104: 26 | AJ104: 19 | AK104: 16 | AL104: 35 | AM104: 14 | AN104: 5 | AO104: 19 | AP104: 10 | AQ104: 3 | AR104: 13 | AS104: 140 | AT104: 113 | AU104: 253
B105: 02 | C105: Colón | D105: 10 | E105: Bonito Oriental | F105: 02 | G105: Corocito | H105: 021000003 | I105: JESUS AGUILAR PAZ | J105: COROCITO | K105: 89366321 | L105: Rural | M105: Oficial | N105: Jose Andrés González Méndez | O105: 17 | P105: 4 | Q105: 21 | R105: 38 | S105: 51 | T105: 89 | U105: 32 | V105: 28 | W105: 60 | X105: 27 | Y105: 35 | Z105: 62 | AA105: 43 | AB105: 41 | AC105: 84 | AD105: 45 | AE105: 41 | AF105: 86 | AG105: 28 | AH105: 36 | AI105: 64 | AJ105: 45 | AK105: 28 | AL105: 73 | AM105: 22 | AN105: 29 | AO105: 51 | AP105: 21 | AQ105: 15 | AR105: 36 | AS105: 301 | AT105: 304 | AU105: 605
B106: 02 | C106: Colón | D106: 10 | E106: Bonito Oriental | F106: 04 | G106: El Antigual | H106: 021000008 | I106: EUGENIO MATUTE CANIZALES | J106: EL ANTIGUAL | K106: 96583250 | L106: Rural | M106: Oficial | N106: MARIO HUMBERTO CHINCHILLA HERNANDEZ | O106: 2 | P106: 4 | Q106: 6 | R106: 7 | S106: 11 | T106: 18 | U106: 11 | V106: 6 | W106: 17 | X106: 9 | Y106: 10 | Z106: 19 | AA106: 11 | AB106: 14 | AC106: 25 | AD106: 11 | AE106: 17 | AF106: 28 | AG106: 6 | AH106: 8 | AI106: 14 | AJ106: 9 | AK106: 7 | AL106: 16 | AM106: 8 | AN106: 7 | AO106: 15 | AP106: 12 | AQ106: 10 | AR106: 22 | AS106: 84 | AT106: 90 | AU106: 174
B107: 02 | C107: Colón | D107: 10 | E107: Bonito Oriental | F107: 03 | G107: El Achiote | H107: 021000010 | I107: AMANECER CAMPESINO | J107: EL ACHIOTE | K107: 97863407 | L107: Rural | M107: Oficial | N107: Angelina Carpio Castro | O107: 3 | P107: 0 | Q107: 3 | R107: 13 | S107: 14 | T107: 27 | U107: 7 | V107: 14 | W107: 21 | X107: 8 | Y107: 9 | Z107: 17 | AA107: 12 | AB107: 17 | AC107: 29 | AD107: 10 | AE107: 5 | AF107: 15 | AG107: 5 | AH107: 5 | AI107: 10 | AJ107: 16 | AK107: 8 | AL107: 24 | AM107: 13 | AN107: 1 | AO107: 14 | AP107: 6 | AQ107: 4 | AR107: 10 | AS107: 90 | AT107: 77 | AU107: 167
B108: 02 | C108: Colón | D108: 10 | E108: Bonito Oriental | F108: 09 | G108: San José del Cinco | H108: 021000016 | I108: RUBEN ANTUNEZ C. | J108: LAS PALMAS,KILOMETRO CINCO | K108: 98809049 | L108: Rural | M108: Oficial | N108: SANTOS AGRIPINO LOPEZ | O108: 8 | P108: 8 | Q108: 16 | R108: 31 | S108: 22 | T108: 53 | U108: 30 | V108: 35 | W108: 65 | X108: 25 | Y108: 37 | Z108: 62 | AA108: 29 | AB108: 22 | AC108: 51 | AD108: 24 | AE108: 26 | AF108: 50 | AG108: 22 | AH108: 24 | AI108: 46 | AJ108: 23 | AK108: 29 | AL108: 52 | AM108: 30 | AN108: 21 | AO108: 51 | AP108: 21 | AQ108: 14 | AR108: 35 | AS108: 235 | AT108: 230 | AU108: 465
B109: 02 | C109: Colón | D109: 10 | E109: Bonito Oriental | F109: 01 | G109: Trujillo | H109: 021000023 | I109: ALEXIS ORDOÑEZ PADILLA | J109: EL CARBONAL | K109: 31911954 | L109: Rural | M109: Oficial | N109: Ismael Jerson Clother Castillo | O109: 12 | P109: 9 | Q109: 21 | R109: 29 | S109: 40 | T109: 69 | U109: 32 | V109: 32 | W109: 64 | X109: 26 | Y109: 30 | Z109: 56 | AA109: 30 | AB109: 22 | AC109: 52 | AD109: 41 | AE109: 22 | AF109: 63 | AG109: 24 | AH109: 21 | AI109: 45 | AJ109: 27 | AK109: 15 | AL109: 42 | AM109: 15 | AN109: 12 | AO109: 27 | AP109: 22 | AQ109: 10 | AR109: 32 | AS109: 246 | AT109: 204 | AU109: 450
B110: 03 | C110: Comayagua | D110: 01 | E110: Comayagua | F110: 05 | G110: El Ciruelo | H110: 030100004 | I110: GUADALUPE ULLOA | J110: EL CIRUELO | K110: 7717282 | L110: Rural | M110: Oficial | N110: maria reina hernandez romero | O110: 6 | P110: 1 | Q110: 7 | R110: 19 | S110: 16 | T110: 35 | U110: 13 | V110: 8 | W110: 21 | X110: 11 | Y110: 11 | Z110: 22 | AA110: 6 | AB110: 7 | AC110: 13 | AD110: 5 | AE110: 9 | AF110: 14 | AG110: 10 | AH110: 6 | AI110: 16 | AJ110: 8 | AK110: 6 | AL110: 14 | AM110: 8 | AN110: 13 | AO110: 21 | AP110: 4 | AQ110: 5 | AR110: 9 | AS110: 84 | AT110: 81 | AU110: 165
B111: 03 | C111: Comayagua | D111: 01 | E111: Comayagua | F111: 01 | G111: Comayagua | H111: 030100016 | I111: CENTRO DE EDUCACION BASICA PABLO PORTILLO FIGUEROA | J111: COL. PRIMERO DE MAYO | K111: 7728518 | L111: Urbana | M111: Oficial | N111: LEOBARDO AMOR CACERES GALINDO | O111: 25 | P111: 7 | Q111: 32 | R111: 68 | S111: 78 | T111: 146 | U111: 49 | V111: 70 | W111: 119 | X111: 46 | Y111: 54 | Z111: 100 | AA111: 53 | AB111: 67 | AC111: 120 | AD111: 58 | AE111: 50 | AF111: 108 | AG111: 50 | AH111: 51 | AI111: 101 | AJ111: 45 | AK111: 27 | AL111: 72 | AM111: 40 | AN111: 18 | AO111: 58 | AP111: 30 | AQ111: 15 | AR111: 45 | AS111: 439 | AT111: 430 | AU111: 869
B112: 03 | C112: Comayagua | D112: 01 | E112: Comayagua | F112: 02 | G112: Agua Salada | H112: 030100025 | I112: FRANCISCO MORAZAN | J112: AGUA SALADA | K112: 98521389 | L112: Rural | M112: Oficial | N112: Danis Rodolfo Discua | O112: 1 | P112: 3 | Q112: 4 | R112: 3 | S112: 5 | T112: 8 | U112: 8 | V112: 2 | W112: 10 | X112: 4 | Y112: 3 | Z112: 7 | AA112: 5 | AB112: 4 | AC112: 9 | AD112: 4 | AE112: 9 | AF112: 13 | AG112: 4 | AH112: 7 | AI112: 11 | AJ112: 6 | AK112: 8 | AL112: 14 | AM112: 10 | AN112: 7 | AO112: 17 | AP112: 0 | AQ112: 0 | AR112: 0 | AS112: 44 | AT112: 45 | AU112: 89
B113: 03 | C113: Comayagua | D113: 01 | E113: Comayagua | F113: 37 | G113: San José de Pane | H113: 030100026 | I113: LEONCIO VALLE | J113: ALDEA DE SAN JOSE DE PANE | K113: 98351146 | L113: Rural | M113: Oficial | N113: Juana Araminta Castellanos Rodriguez | O113: 7 | P113: 0 | Q113: 7 | R113: 38 | S113: 33 | T113: 71 | U113: 35 | V113: 35 | W113: 70 | X113: 27 | Y113: 31 | Z113: 58 | AA113: 20 | AB113: 13 | AC113: 33 | AD113: 16 | AE113: 20 | AF113: 36 | AG113: 16 | AH113: 11 | AI113: 27 | AJ113: 5 | AK113: 14 | AL113: 19 | AM113: 10 | AN113: 2 | AO113: 12 | AP113: 20 | AQ113: 10 | AR113: 30 | AS113: 187 | AT113: 169 | AU113: 356
B114: 03 | C114: Comayagua | D114: 01 | E114: Comayagua | F114: 12 | G114: El Sauce | H114: 030100030 | I114: ESCUELA FRANCISCO MORAZAN | J114: EL SAUCE | K114: 7151647 | L114: Rural | M114: Oficial | N114: Marcelino Caballero Dominguez | O114: 10 | P114: 3 | Q114: 13 | R114: 30 | S114: 26 | T114: 56 | U114: 26 | V114: 32 | W114: 58 | X114: 20 | Y114: 12 | Z114: 32 | AA114: 20 | AB114: 21 | AC114: 41 | AD114: 31 | AE114: 28 | AF114: 59 | AG114: 19 | AH114: 16 | AI114: 35 | AJ114: 17 | AK114: 21 | AL114: 38 | AM114: 17 | AN114: 6 | AO114: 23 | AP114: 13 | AQ114: 7 | AR114: 20 | AS114: 193 | AT114: 169 | AU114: 362
B115: 03 | C115: Comayagua | D115: 01 | E115: Comayagua | F115: 39 | G115: Valle de Angeles | H115: 030100034 | I115: CENTRO DE EDUCACION BASICA COMALHUACAN | J115: VALLE DE ANGELES COMAYAGUA | K115: 97022833 | L115: Rural | M115: Oficial | N115: Juan Jose Maldonado Maldonado | O115: 9 | P115: 3 | Q115: 12 | R115: 13 | S115: 23 | T115: 36 | U115: 26 | V115: 27 | W115: 53 | X115: 27 | Y115: 33 | Z115: 60 | AA115: 28 | AB115: 32 | AC115: 60 | AD115: 25 | AE115: 25 | AF115: 50 | AG115: 21 | AH115: 11 | AI115: 32 | AJ115: 12 | AK115: 17 | AL115: 29 | AM115: 8 | AN115: 8 | AO115: 16 | AP115: 8 | AQ115: 13 | AR115: 21 | AS115: 168 | AT115: 189 | AU115: 357
B116: 03 | C116: Comayagua | D116: 01 | E116: Comayagua | F116: 01 | G116: Comayagua | H116: 030100047 | I116: RAMON ORTEGA | J116: BARRIO SANTA LUCIA | K116: 7727235 | L116: Urbana | M116: Oficial | N116: Fray Jesus Rosales | O116: 8 | P116: 4 | Q116: 12 | R116: 7 | S116: 15 | T116: 22 | U116: 16 | V116: 12 | W116: 28 | X116: 17 | Y116: 25 | Z116: 42 | AA116: 15 | AB116: 13 | AC116: 28 | AD116: 8 | AE116: 18 | AF116: 26 | AG116: 9 | AH116: 11 | AI116: 20 | AJ116: 18 | AK116: 6 | AL116: 24 | AM116: 10 | AN116: 9 | AO116: 19 | AP116: 11 | AQ116: 3 | AR116: 14 | AS116: 111 | AT116: 112 | AU116: 223
B117: 03 | C117: Comayagua | D117: 01 | E117: Comayagua | F117: 01 | G117: Comayagua | H117: 030100052 | I117: RAMIRO HUMBERTO MORENO | J117: BARRIO BELLA VISTA LA ZAREITA | K117: 27724499 | L117: Urbana | M117: Oficial | N117: Bertha Suyapa Aguilar Delcid | O117: 13 | P117: 10 | Q117: 23 | R117: 53 | S117: 64 | T117: 117 | U117: 30 | V117: 59 | W117: 89 | X117: 58 | Y117: 60 | Z117: 118 | AA117: 59 | AB117: 46 | AC117: 105 | AD117: 51 | AE117: 44 | AF117: 95 | AG117: 57 | AH117: 48 | AI117: 105 | AJ117: 25 | AK117: 19 | AL117: 44 | AM117: 35 | AN117: 14 | AO117: 49 | AP117: 20 | AQ117: 18 | AR117: 38 | AS117: 388 | AT117: 372 | AU117: 760
B118: 03 | C118: Comayagua | D118: 01 | E118: Comayagua | F118: 10 | G118: El Portillo de La Mora | H118: 030100066 | I118: NICOLAS MONTES | J118: PORTILLO DE LA MORA | K118: 7155121 | L118: Rural | M118: Oficial | N118: Omar Augusto Vasquez Gomez | O118: 2 | P118: 6 | Q118: 8 | R118: 18 | S118: 23 | T118: 41 | U118: 18 | V118: 22 | W118: 40 | X118: 19 | Y118: 23 | Z118: 42 | AA118: 17 | AB118: 16 | AC118: 33 | AD118: 11 | AE118: 14 | AF118: 25 | AG118: 13 | AH118: 7 | AI118: 20 | AJ118: 32 | AK118: 20 | AL118: 52 | AM118: 25 | AN118: 15 | AO118: 40 | AP118: 17 | AQ118: 12 | AR118: 29 | AS118: 170 | AT118: 152 | AU118: 322
B119: 03 | C119: Comayagua | D119: 01 | E119: Comayagua | F119: 01 | G119: Comayagua | H119: 030100159 | I119: CARLOS MIRANDA CANALES | J119: CERRO EL NANCE | K119: 7722269 | L119: Rural | M119: Comunitaria | N119: carlos arturo suazo gutierrez | O119: 2 | P119: 9 | Q119: 11 | R119: 22 | S119: 22 | T119: 44 | U119: 13 | V119: 13 | W119: 26 | X119: 15 | Y119: 18 | Z119: 33 | AA119: 11 | AB119: 14 | AC119: 25 | AD119: 9 | AE119: 14 | AF119: 23 | AG119: 15 | AH119: 10 | AI119: 25 | AJ119: 15 | AK119: 8 | AL119: 23 | AM119: 5 | AN119: 2 | AO119: 7 | AP119: 2 | AQ119: 0 | AR119: 2 | AS119: 107 | AT119: 101 | AU119: 208
B120: 03 | C120: Comayagua | D120: 01 | E120: Comayagua | F120: 14 | G120: El Taladro | H120: 030100264 | I120: NUEVO AMANECER | J120: ASENTAMIENTO ISLA DEL TRIUNFO | L120: Rural | M120: Oficial | N120: Alva Bessy Melgar Sanchez | O120: 3 | P120: 0 | Q120: 3 | R120: 2 | S120: 4 | T120: 6 | U120: 9 | V120: 5 | W120: 14 | X120: 5 | Y120: 4 | Z120: 9 | AA120: 5 | AB120: 8 | AC120: 13 | AD120: 3 | AE120: 2 | AF120: 5 | AG120: 5 | AH120: 4 | AI120: 9 | AJ120: 8 | AK120: 4 | AL120: 12 | AM120: 0 | AN120: 0 | AO120: 0 | AP120: 0 | AQ120: 0 | AR120: 0 | AS120: 37 | AT120: 31 | AU120: 68
B121: 03 | C121: Comayagua | D121: 01 | E121: Comayagua | F121: 32 | G121: Piedras Azules | H121: 030100299 | I121: JOSE MANUEL ZELAYA ROSALES | J121: COMAYAGUA | L121: Rural | M121: Oficial | N121: blima dayanara rodriguez donaire | O121: 7 | P121: 0 | Q121: 7 | R121: 9 | S121: 14 | T121: 23 | U121: 5 | V121: 9 | W121: 14 | X121: 8 | Y121: 7 | Z121: 15 | AA121: 11 | AB121: 3 | AC121: 14 | AD121: 4 | AE121: 3 | AF121: 7 | AG121: 7 | AH121: 5 | AI121: 12 | AJ121: 16 | AK121: 18 | AL121: 34 | AM121: 9 | AN121: 7 | AO121: 16 | AP121: 0 | AQ121: 0 | AR121: 0 | AS121: 69 | AT121: 66 | AU121: 135
B122: 03 | C122: Comayagua | D122: 03 | E122: El Rosario | F122: 03 | G122: Cerro Blanco | H122: 030300005 | I122: JOSE RAMON VILLEDA MORALES | J122: ALDEA CERRO BLANCO | K122: 99349182 | L122: Rural | M122: Oficial | N122: Lesly Bonilla Jimenez | O122: 8 | P122: 0 | Q122: 8 | R122: 11 | S122: 17 | T122: 28 | U122: 18 | V122: 20 | W122: 38 | X122: 22 | Y122: 14 | Z122: 36 | AA122: 19 | AB122: 11 | AC122: 30 | AD122: 13 | AE122: 12 | AF122: 25 | AG122: 12 | AH122: 8 | AI122: 20 | AJ122: 27 | AK122: 15 | AL122: 42 | AM122: 28 | AN122: 10 | AO122: 38 | AP122: 21 | AQ122: 18 | AR122: 39 | AS122: 171 | AT122: 125 | AU122: 296
B123: 03 | C123: Comayagua | D123: 03 | E123: El Rosario | F123: 11 | G123: San Francisco de Loma Larga | H123: 030300008 | I123: DEMETRIO MARTINEZ | J123: LOMA LARGA | K123: 32281016 | L123: Rural | M123: Oficial | N123: Orlando Castañeda Lizardo | O123: 2 | P123: 1 | Q123: 3 | R123: 17 | S123: 11 | T123: 28 | U123: 10 | V123: 15 | W123: 25 | X123: 11 | Y123: 12 | Z123: 23 | AA123: 13 | AB123: 17 | AC123: 30 | AD123: 9 | AE123: 14 | AF123: 23 | AG123: 9 | AH123: 8 | AI123: 17 | AJ123: 7 | AK123: 12 | AL123: 19 | AM123: 12 | AN123: 8 | AO123: 20 | AP123: 28 | AQ123: 21 | AR123: 49 | AS123: 116 | AT123: 118 | AU123: 234
B124: 03 | C124: Comayagua | D124: 03 | E124: El Rosario | F124: 12 | G124: San Isidro | H124: 030300009 | I124: MIGUEL PAZ BARAHONA | J124: SAN ISIDRO | K124: 96911823 | L124: Rural | M124: Oficial | N124: Jose Amilcar Flores | O124: 9 | P124: 4 | Q124: 13 | R124: 37 | S124: 35 | T124: 72 | U124: 33 | V124: 32 | W124: 65 | X124: 38 | Y124: 27 | Z124: 65 | AA124: 23 | AB124: 34 | AC124: 57 | AD124: 35 | AE124: 30 | AF124: 65 | AG124: 30 | AH124: 13 | AI124: 43 | AJ124: 32 | AK124: 14 | AL124: 46 | AM124: 22 | AN124: 19 | AO124: 41 | AP124: 22 | AQ124: 17 | AR124: 39 | AS124: 272 | AT124: 221 | AU124: 493
B125: 03 | C125: Comayagua | D125: 03 | E125: El Rosario | F125: 06 | G125: La Laguna | H125: 030300027 | I125: MANUEL BONILLA | J125: LAS LAGUNAS | K125: 96824585 | L125: Rural | M125: Oficial | N125: Neptaly Zavala Oseguera | O125: 2 | P125: 6 | Q125: 8 | R125: 15 | S125: 17 | T125: 32 | U125: 18 | V125: 20 | W125: 38 | X125: 13 | Y125: 9 | Z125: 22 | AA125: 11 | AB125: 13 | AC125: 24 | AD125: 11 | AE125: 12 | AF125: 23 | AG125: 8 | AH125: 12 | AI125: 20 | AJ125: 16 | AK125: 10 | AL125: 26 | AM125: 14 | AN125: 7 | AO125: 21 | AP125: 11 | AQ125: 16 | AR125: 27 | AS125: 117 | AT125: 116 | AU125: 233
B126: 03 | C126: Comayagua | D126: 03 | E126: El Rosario | F126: 04 | G126: Concepción de Guasistagua | H126: 030300039 | I126: REPUBLICA DE HONDURAS | J126: LA CONCEPCION | K126: 98853928 | L126: Rural | M126: Oficial | N126: Ada Argentina Guillen Pacheco | O126: 9 | P126: 3 | Q126: 12 | R126: 31 | S126: 28 | T126: 59 | U126: 29 | V126: 24 | W126: 53 | X126: 21 | Y126: 32 | Z126: 53 | AA126: 20 | AB126: 29 | AC126: 49 | AD126: 24 | AE126: 18 | AF126: 42 | AG126: 26 | AH126: 21 | AI126: 47 | AJ126: 20 | AK126: 11 | AL126: 31 | AM126: 14 | AN126: 10 | AO126: 24 | AP126: 15 | AQ126: 13 | AR126: 28 | AS126: 200 | AT126: 186 | AU126: 386
B127: 03 | C127: Comayagua | D127: 04 | E127: Esquias | F127: 06 | G127: Rancho Grande | H127: 030400003 | I127: GREGORIO DONAIRE | J127: BARRIO ARRIBA | K127: 7577304 | L127: Rural | M127: Oficial | N127: NIDIA SAGRARIO DONAIRE GUERRERO | O127: 9 | P127: 1 | Q127: 10 | R127: 12 | S127: 18 | T127: 30 | U127: 17 | V127: 16 | W127: 33 | X127: 20 | Y127: 12 | Z127: 32 | AA127: 17 | AB127: 14 | AC127: 31 | AD127: 15 | AE127: 20 | AF127: 35 | AG127: 17 | AH127: 15 | AI127: 32 | AJ127: 28 | AK127: 15 | AL127: 43 | AM127: 36 | AN127: 23 | AO127: 59 | AP127: 24 | AQ127: 20 | AR127: 44 | AS127: 186 | AT127: 153 | AU127: 339
B128: 03 | C128: Comayagua | D128: 04 | E128: Esquias | F128: 07 | G128: Río Chiquito | H128: 030400005 | I128: FRANCISCO MORAZAN | J128: LA MASICA | K128: 7560452 | L128: Rural | M128: Oficial | N128: Luis Heriberto Merlo Caceres | O128: 5 | P128: 4 | Q128: 9 | R128: 9 | S128: 7 | T128: 16 | U128: 10 | V128: 7 | W128: 17 | X128: 7 | Y128: 10 | Z128: 17 | AA128: 5 | AB128: 10 | AC128: 15 | AD128: 10 | AE128: 12 | AF128: 22 | AG128: 7 | AH128: 2 | AI128: 9 | AJ128: 26 | AK128: 11 | AL128: 37 | AM128: 16 | AN128: 13 | AO128: 29 | AP128: 18 | AQ128: 14 | AR128: 32 | AS128: 108 | AT128: 86 | AU128: 194
B129: 03 | C129: Comayagua | D129: 04 | E129: Esquias | F129: 02 | G129: El Oro Abajo | H129: 030400017 | I129: FRANCISCO MORAZAN | J129: CALPULES | K129: 97710389 | L129: Rural | M129: Oficial | N129: Alma Yolani Reina Guillen | O129: 3 | P129: 2 | Q129: 5 | R129: 7 | S129: 6 | T129: 13 | U129: 10 | V129: 7 | W129: 17 | X129: 6 | Y129: 7 | Z129: 13 | AA129: 9 | AB129: 5 | AC129: 14 | AD129: 7 | AE129: 2 | AF129: 9 | AG129: 6 | AH129: 2 | AI129: 8 | AJ129: 13 | AK129: 14 | AL129: 27 | AM129: 13 | AN129: 4 | AO129: 17 | AP129: 9 | AQ129: 3 | AR129: 12 | AS129: 80 | AT129: 50 | AU129: 130
B130: 03 | C130: Comayagua | D130: 05 | E130: Humuya | F130: 01 | G130: Humuya | H130: 030500002 | I130: JOSE CECILIO DEL VALLE | J130: FRENTE AL SALON COMUNAL HUMUYA | K130: 7171754 | L130: Urbana | M130: Oficial | N130: Concepcion Maribel Santos Rodriguez | O130: 6 | P130: 2 | Q130: 8 | R130: 3 | S130: 5 | T130: 8 | U130: 5 | V130: 12 | W130: 17 | X130: 6 | Y130: 10 | Z130: 16 | AA130: 6 | AB130: 11 | AC130: 17 | AD130: 16 | AE130: 8 | AF130: 24 | AG130: 11 | AH130: 6 | AI130: 17 | AJ130: 11 | AK130: 13 | AL130: 24 | AM130: 10 | AN130: 5 | AO130: 15 | AP130: 11 | AQ130: 16 | AR130: 27 | AS130: 79 | AT130: 86 | AU130: 165
B131: 03 | C131: Comayagua | D131: 06 | E131: La Libertad | F131: 19 | G131: Valle Bonito | H131: 030600003 | I131: LA DEMOCRACIA | J131: VALLE BONITO | K131: 99298315 | L131: Rural | M131: Oficial | N131: Reynaldo Romero Adriano | O131: 3 | P131: 5 | Q131: 8 | R131: 12 | S131: 13 | T131: 25 | U131: 11 | V131: 17 | W131: 28 | X131: 18 | Y131: 10 | Z131: 28 | AA131: 13 | AB131: 23 | AC131: 36 | AD131: 14 | AE131: 16 | AF131: 30 | AG131: 12 | AH131: 4 | AI131: 16 | AJ131: 16 | AK131: 15 | AL131: 31 | AM131: 13 | AN131: 14 | AO131: 27 | AP131: 10 | AQ131: 10 | AR131: 20 | AS131: 119 | AT131: 122 | AU131: 241
B132: 03 | C132: Comayagua | D132: 06 | E132: La Libertad | F132: 14 | G132: San Andrés | H132: 030600009 | I132: JUAN FRANCISCO ROMERO | J132: EL TRANSITO | K132: 97760793 | L132: Rural | M132: Oficial | N132: Lesly Johanna Flores Garcia | O132: 4 | P132: 3 | Q132: 7 | R132: 8 | S132: 10 | T132: 18 | U132: 8 | V132: 7 | W132: 15 | X132: 14 | Y132: 4 | Z132: 18 | AA132: 7 | AB132: 12 | AC132: 19 | AD132: 8 | AE132: 6 | AF132: 14 | AG132: 7 | AH132: 5 | AI132: 12 | AJ132: 21 | AK132: 25 | AL132: 46 | AM132: 18 | AN132: 17 | AO132: 35 | AP132: 23 | AQ132: 17 | AR132: 40 | AS132: 114 | AT132: 103 | AU132: 217
B133: 03 | C133: Comayagua | D133: 06 | E133: La Libertad | F133: 12 | G133: Montañuelas | H133: 030600019 | I133: PEDRO A MEDAL | J133: MONTAÑUELAS | K133: 97227712 | L133: Rural | M133: Oficial | N133: Edilberto Avila Ortega | O133: 5 | P133: 3 | Q133: 8 | R133: 15 | S133: 18 | T133: 33 | U133: 14 | V133: 12 | W133: 26 | X133: 3 | Y133: 11 | Z133: 14 | AA133: 9 | AB133: 10 | AC133: 19 | AD133: 19 | AE133: 21 | AF133: 40 | AG133: 10 | AH133: 13 | AI133: 23 | AJ133: 9 | AK133: 9 | AL133: 18 | AM133: 6 | AN133: 10 | AO133: 16 | AP133: 12 | AQ133: 9 | AR133: 21 | AS133: =R133+U133+X133+AA133+AD133+AG133+AJ133+AM133+AP133 -> 97 | AT133: 113 | AU133: 210
B134: 03 | C134: Comayagua | D134: 06 | E134: La Libertad | F134: 22 | G134: Zacatalitos | H134: 030600037 | I134: LA DEMOCRACIA | J134: LA LAGUNA DEL RINCON | K134: 7560135 | L134: Rural | M134: Oficial | N134: Alejandro Buezo Arguijo | O134: 5 | P134: 6 | Q134: 11 | R134: 19 | S134: 16 | T134: 35 | U134: 16 | V134: 16 | W134: 32 | X134: 16 | Y134: 16 | Z134: 32 | AA134: 18 | AB134: 16 | AC134: 34 | AD134: 17 | AE134: 8 | AF134: 25 | AG134: 12 | AH134: 17 | AI134: 29 | AJ134: 41 | AK134: 37 | AL134: 78 | AM134: 37 | AN134: 34 | AO134: 71 | AP134: 27 | AQ134: 14 | AR134: 41 | AS134: 203 | AT134: 174 | AU134: 377
B135: 03 | C135: Comayagua | D135: 06 | E135: La Libertad | F135: 01 | G135: La Libertad | H135: 030600047 | I135: RENACIMIENTO | J135: COLONIA LA PISTA | K135: 99049291 | L135: Rural | M135: Oficial | N135: Marcial Rosales Castillo | O135: 3 | P135: 6 | Q135: 9 | R135: 11 | S135: 13 | T135: 24 | U135: 10 | V135: 5 | W135: 15 | X135: 10 | Y135: 21 | Z135: 31 | AA135: 17 | AB135: 10 | AC135: 27 | AD135: 8 | AE135: 12 | AF135: 20 | AG135: 9 | AH135: 5 | AI135: 14 | AJ135: 20 | AK135: 20 | AL135: 40 | AM135: 16 | AN135: 11 | AO135: 27 | AP135: 12 | AQ135: 9 | AR135: 21 | AS135: 113 | AT135: 106 | AU135: 219
B136: 03 | C136: Comayagua | D136: 08 | E136: La Trinidad | F136: 01 | G136: La Trinidad | H136: 030800001 | I136: JOSE TRINIDAD REYES | J136: LA PLAZUELA | K136: 7575444 | L136: Urbana | M136: Oficial | N136: Ramon Ernesto Zavala Rivera | O136: 8 | P136: 1 | Q136: 9 | R136: 11 | S136: 13 | T136: 24 | U136: 18 | V136: 15 | W136: 33 | X136: 14 | Y136: 16 | Z136: 30 | AA136: 15 | AB136: 17 | AC136: 32 | AD136: 18 | AE136: 14 | AF136: 32 | AG136: 7 | AH136: 10 | AI136: 17 | AJ136: 23 | AK136: 12 | AL136: 35 | AM136: 17 | AN136: 26 | AO136: 43 | AP136: 17 | AQ136: 9 | AR136: 26 | AS136: 140 | AT136: 132 | AU136: 272
B137: 03 | C137: Comayagua | D137: 08 | E137: La Trinidad | F137: 07 | G137: Tierra Blanca | H137: 030800006 | I137: NICOLAS MONTES | J137: TIERRA BLANCA | K137: 98023145 | L137: Rural | M137: Oficial | N137: Agustin Sanchez Hernandez | O137: 4 | P137: 5 | Q137: 9 | R137: 24 | S137: 34 | T137: 58 | U137: 18 | V137: 22 | W137: 40 | X137: 20 | Y137: 18 | Z137: 38 | AA137: 14 | AB137: 20 | AC137: 34 | AD137: 9 | AE137: 13 | AF137: 22 | AG137: 12 | AH137: 16 | AI137: 28 | AJ137: 14 | AK137: 10 | AL137: 24 | AM137: 14 | AN137: 5 | AO137: 19 | AP137: 17 | AQ137: 2 | AR137: 19 | AS137: 142 | AT137: 140 | AU137: 282
B138: 03 | C138: Comayagua | D138: 10 | E138: Meambar | F138: 06 | G138: El Buen Pastor | H138: 031000001 | I138: ESCUELA PETRONA CEBALLOS | J138: ALDEA EL BUEN PASTOR | K138: 96671088 | L138: Rural | M138: Oficial | N138: Emilio Enrique Matute | O138: 3 | P138: 2 | Q138: 5 | R138: 5 | S138: 8 | T138: 13 | U138: 9 | V138: 13 | W138: 22 | X138: 8 | Y138: 8 | Z138: 16 | AA138: 9 | AB138: 9 | AC138: 18 | AD138: 8 | AE138: 5 | AF138: 13 | AG138: 10 | AH138: 3 | AI138: 13 | AJ138: 6 | AK138: 10 | AL138: 16 | AM138: 1 | AN138: 12 | AO138: 13 | AP138: 7 | AQ138: 6 | AR138: 13 | AS138: 63 | AT138: 74 | AU138: 137
B139: 03 | C139: Comayagua | D139: 11 | E139: Minas de Oro | F139: 11 | G139: Santa Cruz | H139: 031100019 | I139: LA INDEPENDECIA | J139: SANTA CRUZ | K139: 98868038 | L139: Rural | M139: Oficial | N139: CARLO ALEXI CANALES URBINA | O139: 6 | P139: 3 | Q139: 9 | R139: 5 | S139: 12 | T139: 17 | U139: 4 | V139: 8 | W139: 12 | X139: 6 | Y139: 3 | Z139: 9 | AA139: 8 | AB139: 7 | AC139: 15 | AD139: 6 | AE139: 6 | AF139: 12 | AG139: 7 | AH139: 9 | AI139: 16 | AJ139: 16 | AK139: 11 | AL139: 27 | AM139: 8 | AN139: 21 | AO139: 29 | AP139: 8 | AQ139: 21 | AR139: 29 | AS139: 68 | AT139: 98 | AU139: 166
B140: 03 | C140: Comayagua | D140: 12 | E140: Ojo de Agua | F140: 01 | G140: Ojos de Agua | H140: 031200002 | I140: FRANCISCO MORAZAN | J140: BO ABAJO | K140: 96574088 | L140: Urbana | M140: Oficial | N140: Jose Anibal Anariba Ulloa | O140: 4 | P140: 5 | Q140: 9 | R140: 17 | S140: 33 | T140: 50 | U140: 17 | V140: 12 | W140: 29 | X140: 25 | Y140: 24 | Z140: 49 | AA140: 15 | AB140: 23 | AC140: 38 | AD140: 20 | AE140: 18 | AF140: 38 | AG140: 17 | AH140: 14 | AI140: 31 | AJ140: 26 | AK140: 20 | AL140: 46 | AM140: 19 | AN140: 19 | AO140: 38 | AP140: 13 | AQ140: 11 | AR140: 24 | AS140: 169 | AT140: 174 | AU140: 343
B141: 03 | C141: Comayagua | D141: 12 | E141: Ojo de Agua | F141: 18 | G141: San Rafael | H141: 031200004 | I141: MARCOS CARIAS REYES | J141: SAN RAFAEL | K141: 95085211 | L141: Rural | M141: Oficial | N141: NESTOR OMAR ULLOA ANARIBA | O141: 4 | P141: 3 | Q141: 7 | R141: 10 | S141: 11 | T141: 21 | U141: 9 | V141: 15 | W141: 24 | X141: 11 | Y141: 19 | Z141: 30 | AA141: 11 | AB141: 18 | AC141: 29 | AD141: 12 | AE141: 15 | AF141: 27 | AG141: 4 | AH141: 17 | AI141: 21 | AJ141: 12 | AK141: 9 | AL141: 21 | AM141: 18 | AN141: 9 | AO141: 27 | AP141: 18 | AQ141: 11 | AR141: 29 | AS141: 105 | AT141: 124 | AU141: 229
B142: 03 | C142: Comayagua | D142: 12 | E142: Ojo de Agua | F142: 16 | G142: Los Guineos | H142: 031200009 | I142: JOSE TRINIDAD CABAÐAS | J142: LOS GUINEOS | K142: 97835864 | L142: Rural | M142: Oficial | N142: JORGE ADALBERTO MALDONADO ORTEGA | O142: 0 | P142: 2 | Q142: 2 | R142: 1 | S142: 5 | T142: 6 | U142: 0 | V142: 0 | W142: 0 | X142: 2 | Y142: 1 | Z142: 3 | AA142: 0 | AB142: 0 | AC142: 0 | AD142: 0 | AE142: 0 | AF142: 0 | AG142: 1 | AH142: 1 | AI142: 2 | AJ142: 7 | AK142: 12 | AL142: 19 | AM142: 7 | AN142: 2 | AO142: 9 | AP142: 5 | AQ142: 8 | AR142: 13 | AS142: 23 | AT142: 29 | AU142: 52
B143: 03 | C143: Comayagua | D143: 12 | E143: Ojo de Agua | F143: 11 | G143: La Candelaria | H143: 031200010 | I143: PERFECTO BOBADILLA | J143: LA CANDELARIA | L143: Rural | M143: Oficial | N143: WILBERTO MACHADO ROMERO | O143: 3 | P143: 1 | Q143: 4 | R143: 0 | S143: 8 | T143: 8 | U143: 6 | V143: 6 | W143: 12 | X143: 3 | Y143: 3 | Z143: 6 | AA143: 6 | AB143: 4 | AC143: 10 | AD143: 2 | AE143: 4 | AF143: 6 | AG143: 9 | AH143: 8 | AI143: 17 | AJ143: 12 | AK143: 8 | AL143: 20 | AM143: 10 | AN143: 7 | AO143: 17 | AP143: 5 | AQ143: 7 | AR143: 12 | AS143: 53 | AT143: 55 | AU143: 108
B144: 03 | C144: Comayagua | D144: 12 | E144: Ojo de Agua | F144: 06 | G144: El Hielo | H144: 031200012 | I144: FRANCISCO MORAZAN | J144: EL HIELO | K144: 96541684 | L144: Rural | M144: Oficial | N144: Rolando Oseas Buezo Ulloa | O144: 3 | P144: 2 | Q144: 5 | R144: 6 | S144: 10 | T144: 16 | U144: 4 | V144: 10 | W144: 14 | X144: 10 | Y144: 4 | Z144: 14 | AA144: 8 | AB144: 3 | AC144: 11 | AD144: 10 | AE144: 7 | AF144: 17 | AG144: 6 | AH144: 7 | AI144: 13 | AJ144: 10 | AK144: 14 | AL144: 24 | AM144: 3 | AN144: 9 | AO144: 12 | AP144: 20 | AQ144: 10 | AR144: 30 | AS144: 77 | AT144: 74 | AU144: 151
B145: 03 | C145: Comayagua | D145: 13 | E145: San Jeronimo | F145: 05 | G145: Jamalteca | H145: 031300020 | I145: REPUBLICA DE HONDURAS | J145: JAMALTECA | K145: 99281954 | L145: Rural | M145: Oficial | N145: dunia lopez castro | O145: 8 | P145: 3 | Q145: 11 | R145: 24 | S145: 14 | T145: 38 | U145: 6 | V145: 14 | W145: 20 | X145: 14 | Y145: 26 | Z145: 40 | AA145: 9 | AB145: 12 | AC145: 21 | AD145: 8 | AE145: 9 | AF145: 17 | AG145: 9 | AH145: 7 | AI145: 16 | AJ145: 32 | AK145: 28 | AL145: 60 | AM145: 29 | AN145: 16 | AO145: 45 | AP145: 19 | AQ145: 20 | AR145: 39 | AS145: 150 | AT145: 146 | AU145: 296
B146: 03 | C146: Comayagua | D146: 13 | E146: San Jeronimo | F146: 12 | G146: Ocotes Caídos | H146: 031300021 | I146: BATALLA DE LA TRINIDAD | J146: ALDEA OCOTES CAIDOS | K146: 95082073 | L146: Rural | M146: Oficial | N146: Jose Rodofo Ovideo Reyes | O146: 3 | P146: 3 | Q146: 6 | R146: 5 | S146: 5 | T146: 10 | U146: 8 | V146: 8 | W146: 16 | X146: 7 | Y146: 6 | Z146: 13 | AA146: 8 | AB146: 4 | AC146: 12 | AD146: 10 | AE146: 9 | AF146: 19 | AG146: 4 | AH146: 9 | AI146: 13 | AJ146: 12 | AK146: 16 | AL146: 28 | AM146: 15 | AN146: 15 | AO146: 30 | AP146: 16 | AQ146: 10 | AR146: 26 | AS146: 85 | AT146: 82 | AU146: 167
B147: 03 | C147: Comayagua | D147: 14 | E147: San Jose de Comayagua | F147: 10 | G147: Las Delicias | H147: 031400042 | I147: CESAR AUGUSTO SANDINO | J147: LAS DELICIAS,LAS DELICIAS | K147: 99435967 | L147: Rural | M147: Oficial | N147: Edmon Renan Alvarado Ordoñez | O147: 9 | P147: 2 | Q147: 11 | R147: 20 | S147: 20 | T147: 40 | U147: 47 | V147: 46 | W147: 93 | X147: 34 | Y147: 33 | Z147: 67 | AA147: 35 | AB147: 23 | AC147: 58 | AD147: 25 | AE147: 29 | AF147: 54 | AG147: 22 | AH147: 13 | AI147: 35 | AJ147: 22 | AK147: 17 | AL147: 39 | AM147: 11 | AN147: 12 | AO147: 23 | AP147: 11 | AQ147: 9 | AR147: 20 | AS147: 227 | AT147: 202 | AU147: 429
B148: 03 | C148: Comayagua | D148: 15 | E148: San Jose Del Potrero | F148: 05 | G148: Potreritos | H148: 031500008 | I148: C.E.B | J148: POTRERITOS, EL ENCINAL | K148: 96120039 | L148: Rural | M148: Oficial | N148: Sulma Danelia Chavez Alvarez | O148: 4 | P148: 0 | Q148: 4 | R148: 6 | S148: 3 | T148: 9 | U148: 5 | V148: 2 | W148: 7 | X148: 1 | Y148: 5 | Z148: 6 | AA148: 6 | AB148: 7 | AC148: 13 | AD148: 6 | AE148: 6 | AF148: 12 | AG148: 4 | AH148: 6 | AI148: 10 | AJ148: 5 | AK148: 2 | AL148: 7 | AM148: 6 | AN148: 8 | AO148: 14 | AP148: 12 | AQ148: 6 | AR148: 18 | AS148: 51 | AT148: 45 | AU148: 96
B149: 03 | C149: Comayagua | D149: 15 | E149: San Jose Del Potrero | F149: 04 | G149: Ojo de Agua o Agua Blanca | H149: 031500029 | I149: RAMON ORTEGA | J149: AGUA BLANCA | K149: 99176216 | L149: Rural | M149: Oficial | N149: WANDA MARIA MATUTE BARAHONA | O149: 3 | P149: 1 | Q149: 4 | R149: 10 | S149: 13 | T149: 23 | U149: 8 | V149: 10 | W149: 18 | X149: 11 | Y149: 5 | Z149: 16 | AA149: 10 | AB149: 11 | AC149: 21 | AD149: 9 | AE149: 9 | AF149: 18 | AG149: 10 | AH149: 12 | AI149: 22 | AJ149: 5 | AK149: 9 | AL149: 14 | AM149: 6 | AN149: 6 | AO149: 12 | AP149: 6 | AQ149: 3 | AR149: 9 | AS149: 75 | AT149: 78 | AU149: 153
B150: 03 | C150: Comayagua | D150: 16 | E150: San Luis | F150: 05 | G150: Las Quebradas | H150: 031600003 | I150: MARCO AURELIO SOTO | J150: LAS QUEBRADAS | K150: 96348828 | L150: Rural | M150: Oficial | N150: ramon orlando lobo flores | O150: 3 | P150: 3 | Q150: 6 | R150: 12 | S150: 11 | T150: 23 | U150: 12 | V150: 14 | W150: 26 | X150: 12 | Y150: 9 | Z150: 21 | AA150: 9 | AB150: 11 | AC150: 20 | AD150: 15 | AE150: 7 | AF150: 22 | AG150: 6 | AH150: 10 | AI150: 16 | AJ150: 17 | AK150: 9 | AL150: 26 | AM150: 11 | AN150: 5 | AO150: 16 | AP150: 9 | AQ150: 6 | AR150: 15 | AS150: 103 | AT150: 82 | AU150: 185
B151: 03 | C151: Comayagua | D151: 18 | E151: Siguatepeque | F151: 01 | G151: Siguatepeque | H151: 031800003 | I151: RENACIMIENTO | J151: BARRIO EL PARNASO 1C Y 2C 9 Y 1 AVE. | K151: 7730395 | L151: Urbana | M151: Oficial | N151: luis enrique castañeda lizardo | O151: 26 | P151: 1 | Q151: 27 | R151: 59 | S151: 73 | T151: 132 | U151: 59 | V151: 59 | W151: 118 | X151: 52 | Y151: 53 | Z151: 105 | AA151: 52 | AB151: 59 | AC151: 111 | AD151: 45 | AE151: 67 | AF151: 112 | AG151: 61 | AH151: 56 | AI151: 117 | AJ151: 19 | AK151: 10 | AL151: 29 | AM151: 30 | AN151: 10 | AO151: 40 | AP151: 8 | AQ151: 17 | AR151: 25 | AS151: 385 | AT151: 404 | AU151: 789
B152: 03 | C152: Comayagua | D152: 18 | E152: Siguatepeque | F152: 01 | G152: Siguatepeque | H152: 031800005 | I152: REY ALFONSO XIII | J152: BARRIO SAN MIGUEL | K152: 7730161 | L152: Urbana | M152: Oficial | N152: SANTIAGO VENTURA MUÑOZ | O152: 17 | P152: 8 | Q152: 25 | R152: 44 | S152: 49 | T152: 93 | U152: 40 | V152: 50 | W152: 90 | X152: 45 | Y152: 49 | Z152: 94 | AA152: 58 | AB152: 47 | AC152: 105 | AD152: 42 | AE152: 64 | AF152: 106 | AG152: 48 | AH152: 41 | AI152: 89 | AJ152: 30 | AK152: 17 | AL152: 47 | AM152: 23 | AN152: 17 | AO152: 40 | AP152: 18 | AQ152: 17 | AR152: 35 | AS152: 348 | AT152: 351 | AU152: 699
B153: 03 | C153: Comayagua | D153: 18 | E153: Siguatepeque | F153: 14 | G153: El Socorro | H153: 031800011 | I153: LA IGUALDAD | J153: EL SOCORRO | K153: 98974624 | L153: Rural | M153: Oficial | N153: Federico Edgardo Aguiluz Madrid | O153: 6 | P153: 1 | Q153: 7 | R153: 23 | S153: 22 | T153: 45 | U153: 11 | V153: 33 | W153: 44 | X153: 26 | Y153: 26 | Z153: 52 | AA153: 30 | AB153: 21 | AC153: 51 | AD153: 20 | AE153: 23 | AF153: 43 | AG153: 10 | AH153: 10 | AI153: 20 | AJ153: 32 | AK153: 18 | AL153: 50 | AM153: 19 | AN153: 22 | AO153: 41 | AP153: 19 | AQ153: 11 | AR153: 30 | AS153: 190 | AT153: 186 | AU153: 376
B154: 03 | C154: Comayagua | D154: 18 | E154: Siguatepeque | F154: 22 | G154: Río Bonito | H154: 031800015 | I154: JUAN JOSE CASTRO | J154: RIO BONITO | K154: 99090622 | L154: Rural | M154: Oficial | N154: Lesli Eunice Saravia Tome | O154: 4 | P154: 2 | Q154: 6 | R154: 19 | S154: 22 | T154: 41 | U154: 33 | V154: 25 | W154: 58 | X154: 16 | Y154: 24 | Z154: 40 | AA154: 10 | AB154: 13 | AC154: 23 | AD154: 16 | AE154: 17 | AF154: 33 | AG154: 15 | AH154: 15 | AI154: 30 | AJ154: 16 | AK154: 13 | AL154: 29 | AM154: 17 | AN154: 7 | AO154: 24 | AP154: 10 | AQ154: 11 | AR154: 21 | AS154: 152 | AT154: 147 | AU154: 299
B155: 03 | C155: Comayagua | D155: 18 | E155: Siguatepeque | F155: 01 | G155: Siguatepeque | H155: 031800020 | I155: PIEDAD SEVILLA GAMERO | J155: COLONIA ANTONIO MATA | K155: 7732756 | L155: Urbana | M155: Oficial | N155: NELLY XIOMARA DOBLADO CRUZ | O155: 11 | P155: 3 | Q155: 14 | R155: 36 | S155: 43 | T155: 79 | U155: 30 | V155: 35 | W155: 65 | X155: 31 | Y155: 32 | Z155: 63 | AA155: 41 | AB155: 28 | AC155: 69 | AD155: 29 | AE155: 32 | AF155: 61 | AG155: 21 | AH155: 26 | AI155: 47 | AJ155: 11 | AK155: 4 | AL155: 15 | AM155: 11 | AN155: 11 | AO155: 22 | AP155: 10 | AQ155: 3 | AR155: 13 | AS155: 220 | AT155: 214 | AU155: 434
B156: 03 | C156: Comayagua | D156: 18 | E156: Siguatepeque | F156: 01 | G156: Siguatepeque | H156: 031800025 | I156: RAFAEL PINEDA PONCE | J156: SANTA MARTHA CALLE 3, 2-3 AVENIDA | K156: 7732509 | L156: Urbana | M156: Oficial | N156: Debora Jimenez Ponce | O156: 13 | P156: 1 | Q156: 14 | R156: 32 | S156: 23 | T156: 55 | U156: 39 | V156: 42 | W156: 81 | X156: 45 | Y156: 32 | Z156: 77 | AA156: 42 | AB156: 41 | AC156: 83 | AD156: 55 | AE156: 50 | AF156: 105 | AG156: 35 | AH156: 51 | AI156: 86 | AJ156: 26 | AK156: 25 | AL156: 51 | AM156: 23 | AN156: 26 | AO156: 49 | AP156: 16 | AQ156: 7 | AR156: 23 | AS156: 313 | AT156: 297 | AU156: 610
B157: 03 | C157: Comayagua | D157: 18 | E157: Siguatepeque | F157: 28 | G157: Santa Rosita | H157: 031800032 | I157: JOSE CECILIO DEL VALLE | J157: SANTA ROSITA | K157: 98716603 | L157: Rural | M157: Oficial | N157: Emmanery Ávila Núñez | O157: 4 | P157: 0 | Q157: 4 | R157: 9 | S157: 16 | T157: 25 | U157: 16 | V157: 18 | W157: 34 | X157: 13 | Y157: 11 | Z157: 24 | AA157: 14 | AB157: 7 | AC157: 21 | AD157: 14 | AE157: 11 | AF157: 25 | AG157: 11 | AH157: 15 | AI157: 26 | AJ157: 9 | AK157: 5 | AL157: 14 | AM157: 10 | AN157: 3 | AO157: 13 | AP157: 16 | AQ157: 6 | AR157: 22 | AS157: 112 | AT157: 92 | AU157: 204
B158: 03 | C158: Comayagua | D158: 18 | E158: Siguatepeque | F158: 05 | G158: Siguatepeque | H158: 031800074 | I158: JUAN DE LA CRUZ AVELAR | J158: B° BUEN VISTA | K158: 97017995 | L158: Rural | M158: Oficial | N158: alonso portillo zuniga | O158: 10 | P158: 1 | Q158: 11 | R158: 26 | S158: 31 | T158: 57 | U158: 34 | V158: 22 | W158: 56 | X158: 21 | Y158: 20 | Z158: 41 | AA158: 24 | AB158: 33 | AC158: 57 | AD158: 22 | AE158: 33 | AF158: 55 | AG158: 20 | AH158: 19 | AI158: 39 | AJ158: 19 | AK158: 23 | AL158: 42 | AM158: 31 | AN158: 22 | AO158: 53 | AP158: 22 | AQ158: 22 | AR158: 44 | AS158: 219 | AT158: 225 | AU158: 444
B159: 03 | C159: Comayagua | D159: 18 | E159: Siguatepeque | F159: 01 | G159: Siguatepeque | H159: 031800083 | I159: ALFONSO GUILLEN ZELAYA | J159: BO. ZARAGOZA | K159: 7730800 | L159: Urbana | M159: Oficial | N159: JOSE BRIGIDO RODRIGUEZ JIMENEZ | O159: 12 | P159: 3 | Q159: 15 | R159: 23 | S159: 36 | T159: 59 | U159: 29 | V159: 25 | W159: 54 | X159: 31 | Y159: 31 | Z159: 62 | AA159: 28 | AB159: 31 | AC159: 59 | AD159: 21 | AE159: 36 | AF159: 57 | AG159: 25 | AH159: 23 | AI159: 48 | AJ159: 21 | AK159: 17 | AL159: 38 | AM159: 26 | AN159: 5 | AO159: 31 | AP159: 10 | AQ159: 2 | AR159: 12 | AS159: 214 | AT159: 206 | AU159: 420
B160: 03 | C160: Comayagua | D160: 18 | E160: Siguatepeque | F160: 10 | G160: El Porvenir | H160: 031800106 | I160: MAX MARTINEZ ZAMBRANO | J160: EL PORVENIR | K160: 7771056 | L160: Rural | M160: Oficial | N160: otilia hortencia padilla padilla | O160: 13 | P160: 0 | Q160: 13 | R160: 21 | S160: 18 | T160: 39 | U160: 18 | V160: 21 | W160: 39 | X160: 31 | Y160: 18 | Z160: 49 | AA160: 20 | AB160: 21 | AC160: 41 | AD160: 22 | AE160: 32 | AF160: 54 | AG160: 23 | AH160: 18 | AI160: 41 | AJ160: 32 | AK160: 24 | AL160: 56 | AM160: 32 | AN160: 16 | AO160: 48 | AP160: 17 | AQ160: 11 | AR160: 28 | AS160: 216 | AT160: 179 | AU160: 395
B161: 03 | C161: Comayagua | D161: 18 | E161: Siguatepeque | F161: 21 | G161: Siguatepeque | H161: 031800110 | I161: DR. MARCO AURELIO SOTO | J161: POTRERILLOS | K161: 9602798 | L161: Rural | M161: Oficial | N161: hector antonio arriaga rodrigues | O161: 8 | P161: 3 | Q161: 11 | R161: 44 | S161: 46 | T161: 90 | U161: 40 | V161: 52 | W161: 92 | X161: 30 | Y161: 30 | Z161: 60 | AA161: 20 | AB161: 33 | AC161: 53 | AD161: 24 | AE161: 29 | AF161: 53 | AG161: 18 | AH161: 12 | AI161: 30 | AJ161: 19 | AK161: 20 | AL161: 39 | AM161: 21 | AN161: 11 | AO161: 32 | AP161: 19 | AQ161: 25 | AR161: 44 | AS161: 235 | AT161: 258 | AU161: 493
B162: 03 | C162: Comayagua | D162: 19 | E162: Villa de San Antonio | F162: 02 | G162: Flores | H162: 031900009 | I162: NICOLAS MONTES | J162: PUENTE NEGRO | K162: 33971889 | L162: Rural | M162: Oficial | N162: Manuel de Jesús David Solórzano | O162: 2 | P162: 4 | Q162: 6 | R162: 19 | S162: 18 | T162: 37 | U162: 13 | V162: 17 | W162: 30 | X162: 14 | Y162: 22 | Z162: 36 | AA162: 11 | AB162: 15 | AC162: 26 | AD162: 16 | AE162: 10 | AF162: 26 | AG162: 24 | AH162: 17 | AI162: 41 | AJ162: 19 | AK162: 31 | AL162: 50 | AM162: 17 | AN162: 16 | AO162: 33 | AP162: 12 | AQ162: 10 | AR162: 22 | AS162: 145 | AT162: 156 | AU162: 301
B163: 03 | C163: Comayagua | D163: 19 | E163: Villa de San Antonio | F163: 02 | G163: Flores | H163: 031900041 | I163: AUGUSTO C. CUELLO | J163: BO. EL CAMPO | K163: 7772476 | L163: Rural | M163: Oficial | N163: RENE PEREZ GONZALES | O163: 20 | P163: 5 | Q163: 25 | R163: 40 | S163: 53 | T163: 93 | U163: 34 | V163: 52 | W163: 86 | X163: 41 | Y163: 42 | Z163: 83 | AA163: 40 | AB163: 34 | AC163: 74 | AD163: 39 | AE163: 55 | AF163: 94 | AG163: 56 | AH163: 49 | AI163: 105 | AJ163: 54 | AK163: 32 | AL163: 86 | AM163: 31 | AN163: 38 | AO163: 69 | AP163: 39 | AQ163: 33 | AR163: 72 | AS163: 374 | AT163: 388 | AU163: 762
B164: 03 | C164: Comayagua | D164: 20 | E164: Las Lajas | F164: 03 | G164: Dulce Nombre | H164: 032000006 | I164: REPUBLICA DE GUATEMALA | J164: DULCE NOMBRE, LAS LAJAS | K164: 97835148 | L164: Rural | M164: Oficial | N164: gerardo enrique vasquez nuñez | O164: 5 | P164: 3 | Q164: 8 | R164: 7 | S164: 18 | T164: 25 | U164: 11 | V164: 17 | W164: 28 | X164: 9 | Y164: 10 | Z164: 19 | AA164: 6 | AB164: 10 | AC164: 16 | AD164: 10 | AE164: 18 | AF164: 28 | AG164: 9 | AH164: 10 | AI164: 19 | AJ164: 35 | AK164: 23 | AL164: 58 | AM164: 35 | AN164: 17 | AO164: 52 | AP164: 29 | AQ164: 22 | AR164: 51 | AS164: 151 | AT164: 145 | AU164: 296
B165: 03 | C165: Comayagua | D165: 21 | E165: Taulabe | F165: 11 | G165: Jardines | H165: 032100003 | I165: SALVADOR HERNANDEZ | J165: JARDINES | L165: Rural | M165: Oficial | N165: Carlos Wilfredo Erazo | O165: 4 | P165: 6 | Q165: 10 | R165: 18 | S165: 18 | T165: 36 | U165: 16 | V165: 14 | W165: 30 | X165: 15 | Y165: 13 | Z165: 28 | AA165: 17 | AB165: 14 | AC165: 31 | AD165: 20 | AE165: 23 | AF165: 43 | AG165: 8 | AH165: 20 | AI165: 28 | AJ165: 13 | AK165: 10 | AL165: 23 | AM165: 19 | AN165: 20 | AO165: 39 | AP165: 14 | AQ165: 13 | AR165: 27 | AS165: 140 | AT165: 145 | AU165: 285
B166: 03 | C166: Comayagua | D166: 21 | E166: Taulabe | F166: 07 | G166: El Carrizal | H166: 032100005 | I166: LAS AMERICAS | J166: EL CARRIZAL | L166: Rural | M166: Oficial | N166: Maria Elizabeth Montes Palacios | O166: 6 | P166: 4 | Q166: 10 | R166: 30 | S166: 30 | T166: 60 | U166: 18 | V166: 26 | W166: 44 | X166: 25 | Y166: 25 | Z166: 50 | AA166: 22 | AB166: 16 | AC166: 38 | AD166: 17 | AE166: 23 | AF166: 40 | AG166: 19 | AH166: 10 | AI166: 29 | AJ166: 20 | AK166: 16 | AL166: 36 | AM166: 17 | AN166: 8 | AO166: 25 | AP166: 24 | AQ166: 1 | AR166: 25 | AS166: 192 | AT166: 155 | AU166: 347
B167: 03 | C167: Comayagua | D167: 21 | E167: Taulabe | F167: 04 | G167: Camalotales | H167: 032100011 | I167: CENTRO DE EDUCACION BASICA JUAN LINDO | J167: CAMALOTALES | K167: 99209641 | L167: Rural | M167: Oficial | N167: Carmen Jakeline Rodriguez Recarte | O167: 5 | P167: 0 | Q167: 5 | R167: 10 | S167: 12 | T167: 22 | U167: 10 | V167: 10 | W167: 20 | X167: 4 | Y167: 3 | Z167: 7 | AA167: 8 | AB167: 9 | AC167: 17 | AD167: 6 | AE167: 2 | AF167: 8 | AG167: 4 | AH167: 3 | AI167: 7 | AJ167: 6 | AK167: 5 | AL167: 11 | AM167: 10 | AN167: 4 | AO167: 14 | AP167: 13 | AQ167: 6 | AR167: 19 | AS167: 71 | AT167: 54 | AU167: 125
B168: 03 | C168: Comayagua | D168: 21 | E168: Taulabe | F168: 01 | G168: Taulabé | H168: 032100014 | I168: CRISTOBAL COLON | J168: PITO SOLO | L168: Rural | M168: Oficial | N168: Elsa Sobeyda Morales Reyes | O168: 8 | P168: 3 | Q168: 11 | R168: 20 | S168: 22 | T168: 42 | U168: 25 | V168: 22 | W168: 47 | X168: 22 | Y168: 20 | Z168: 42 | AA168: 28 | AB168: 29 | AC168: 57 | AD168: 15 | AE168: 22 | AF168: 37 | AG168: 25 | AH168: 16 | AI168: 41 | AJ168: 13 | AK168: 9 | AL168: 22 | AM168: 7 | AN168: 6 | AO168: 13 | AP168: 12 | AQ168: 7 | AR168: 19 | AS168: 167 | AT168: 153 | AU168: 320
B169: 03 | C169: Comayagua | D169: 21 | E169: Taulabe | F169: 10 | G169: Jaitique | H169: 032100027 | I169: MIGUEL MORAZAN | J169: JAITIQUE | L169: Rural | M169: Oficial | N169: Elia Yaneri Clavasquin Rodriguez | O169: 7 | P169: 1 | Q169: 8 | R169: 15 | S169: 10 | T169: 25 | U169: 13 | V169: 15 | W169: 28 | X169: 7 | Y169: 9 | Z169: 16 | AA169: 16 | AB169: 16 | AC169: 32 | AD169: 14 | AE169: 4 | AF169: 18 | AG169: 17 | AH169: 5 | AI169: 22 | AJ169: 7 | AK169: 10 | AL169: 17 | AM169: 9 | AN169: 7 | AO169: 16 | AP169: 11 | AQ169: 2 | AR169: 13 | AS169: 109 | AT169: 78 | AU169: 187
B170: 03 | C170: Comayagua | D170: 21 | E170: Taulabe | F170: 23 | G170: Vacadilla | H170: 032100055 | I170: ANDRES MATUTE | J170: BACADIA | K170: 33922495 | L170: Rural | M170: Oficial | N170: Heleodoro Vasquez Martinez | O170: 5 | P170: 5 | Q170: 10 | R170: 21 | S170: 17 | T170: 38 | U170: 13 | V170: 21 | W170: 34 | X170: 16 | Y170: 8 | Z170: 24 | AA170: 15 | AB170: 15 | AC170: 30 | AD170: 16 | AE170: 16 | AF170: 32 | AG170: 18 | AH170: 20 | AI170: 38 | AJ170: 29 | AK170: 22 | AL170: 51 | AM170: 28 | AN170: 11 | AO170: 39 | AP170: 32 | AQ170: 18 | AR170: 50 | AS170: 188 | AT170: 148 | AU170: 336
B171: 04 | C171: Copán | D171: 01 | E171: Santa Rosa de Copan | F171: 01 | G171: Santa Rosa de Copán | H171: 040100001 | I171: SAN ANTONIO | J171: COL PRADO ALTO | K171: 6621869 | L171: Urbana | M171: Oficial | N171: Rosa Saavedra Posas | O171: 18 | P171: 7 | Q171: 25 | R171: 57 | S171: 35 | T171: 92 | U171: 39 | V171: 42 | W171: 81 | X171: 27 | Y171: 46 | Z171: 73 | AA171: 43 | AB171: 43 | AC171: 86 | AD171: 47 | AE171: 42 | AF171: 89 | AG171: 35 | AH171: 22 | AI171: 57 | AJ171: 27 | AK171: 16 | AL171: 43 | AM171: 19 | AN171: 7 | AO171: 26 | AP171: 14 | AQ171: 12 | AR171: 26 | AS171: 308 | AT171: 265 | AU171: 573
B172: 04 | C172: Copán | D172: 01 | E172: Santa Rosa de Copan | F172: 01 | G172: Santa Rosa de Copán | H172: 040100002 | I172: MANUEL BONILLA | J172: SANTA ROSA | K172: 6620259 | L172: Urbana | M172: Oficial | N172: FRANCIS WILSON VALENZUELA MELGAR | O172: 32 | P172: 9 | Q172: 41 | R172: 79 | S172: 95 | T172: 174 | U172: 84 | V172: 95 | W172: 179 | X172: 86 | Y172: 88 | Z172: 174 | AA172: 79 | AB172: 92 | AC172: 171 | AD172: 101 | AE172: 105 | AF172: 206 | AG172: 92 | AH172: 82 | AI172: 174 | AJ172: 18 | AK172: 17 | AL172: 35 | AM172: 18 | AN172: 16 | AO172: 34 | AP172: 26 | AQ172: 13 | AR172: 39 | AS172: 583 | AT172: 603 | AU172: 1,186
B173: 04 | C173: Copán | D173: 01 | E173: Santa Rosa de Copan | F173: 11 | G173: El Rodeo | H173: 040100007 | I173: FRANCISCO P GUEVARA | J173: EL RODEO | K173: 97447156 | L173: Rural | M173: Oficial | N173: Ronnel Oswaldo Madrid | O173: 4 | P173: 3 | Q173: 7 | R173: 25 | S173: 18 | T173: 43 | U173: 15 | V173: 24 | W173: 39 | X173: 20 | Y173: 29 | Z173: 49 | AA173: 16 | AB173: 16 | AC173: 32 | AD173: 13 | AE173: 18 | AF173: 31 | AG173: 12 | AH173: 14 | AI173: 26 | AJ173: 11 | AK173: 13 | AL173: 24 | AM173: 0 | AN173: 0 | AO173: 0 | AP173: 0 | AQ173: 0 | AR173: 0 | AS173: 112 | AT173: 132 | AU173: 244
B174: 04 | C174: Copán | D174: 01 | E174: Santa Rosa de Copan | F174: 17 | G174: Las Sandías | H174: 040100009 | I174: SALVADOR CORLETO | J174: LAS SANDIAS | K174: 98926426 | L174: Rural | M174: Oficial | N174: Carlos Alberto Mendez | O174: 4 | P174: 2 | Q174: 6 | R174: 10 | S174: 14 | T174: 24 | U174: 14 | V174: 10 | W174: 24 | X174: 7 | Y174: 14 | Z174: 21 | AA174: 12 | AB174: 11 | AC174: 23 | AD174: 10 | AE174: 7 | AF174: 17 | AG174: 5 | AH174: 19 | AI174: 24 | AJ174: 13 | AK174: 7 | AL174: 20 | AM174: 15 | AN174: 6 | AO174: 21 | AP174: 10 | AQ174: 5 | AR174: 15 | AS174: 96 | AT174: 93 | AU174: 189
B175: 04 | C175: Copán | D175: 01 | E175: Santa Rosa de Copan | F175: 01 | G175: Santa Rosa de Copán | H175: 040100015 | I175: SANTO DOMINGO SAVIO | J175: COL LOMA LINDA | K175: 26621229 | L175: Urbana | M175: Oficial | N175: Jose Leonidas Hernandez Hernandez | O175: 14 | P175: 4 | Q175: 18 | R175: 26 | S175: 28 | T175: 54 | U175: 24 | V175: 27 | W175: 51 | X175: 27 | Y175: 29 | Z175: 56 | AA175: 27 | AB175: 31 | AC175: 58 | AD175: 26 | AE175: 34 | AF175: 60 | AG175: 32 | AH175: 28 | AI175: 60 | AJ175: 14 | AK175: 17 | AL175: 31 | AM175: 0 | AN175: 3 | AO175: 3 | AP175: 2 | AQ175: 8 | AR175: 10 | AS175: 178 | AT175: 205 | AU175: 383
B176: 04 | C176: Copán | D176: 01 | E176: Santa Rosa de Copan | F176: 20 | G176: Quezailica | H176: 040100016 | I176: JESUS MARIA RODRIGUEZ | J176: QUESAILICA | K176: 98874941 | L176: Rural | M176: Oficial | N176: Rafael Eliodoro Mejia Lopez | O176: 8 | P176: 4 | Q176: 12 | R176: 20 | S176: 31 | T176: 51 | U176: 18 | V176: 15 | W176: 33 | X176: 19 | Y176: 19 | Z176: 38 | AA176: 24 | AB176: 8 | AC176: 32 | AD176: 14 | AE176: 15 | AF176: 29 | AG176: 11 | AH176: 16 | AI176: 27 | AJ176: 14 | AK176: 12 | AL176: 26 | AM176: 13 | AN176: 19 | AO176: 32 | AP176: 12 | AQ176: 8 | AR176: 20 | AS176: 145 | AT176: 143 | AU176: 288
B177: 04 | C177: Copán | D177: 01 | E177: Santa Rosa de Copan | F177: 01 | G177: Santa Rosa de Copán | H177: 040100017 | I177: JOSE MARIA MEDINA | J177: BARRIO SANTA TERESA | K177: 6620807 | L177: Urbana | M177: Oficial | N177: Jose Jacobo Bueso | O177: 20 | P177: 9 | Q177: 29 | R177: 53 | S177: 70 | T177: 123 | U177: 51 | V177: 69 | W177: 120 | X177: 60 | Y177: 70 | Z177: 130 | AA177: 56 | AB177: 57 | AC177: 113 | AD177: 71 | AE177: 47 | AF177: 118 | AG177: 49 | AH177: 70 | AI177: 119 | AJ177: 16 | AK177: 19 | AL177: 35 | AM177: 18 | AN177: 4 | AO177: 22 | AP177: 7 | AQ177: 8 | AR177: 15 | AS177: 381 | AT177: 414 | AU177: 795
B178: 04 | C178: Copán | D178: 01 | E178: Santa Rosa de Copan | F178: 01 | G178: Santa Rosa de Copán | H178: 040100018 | I178: JESUS B MEMBREÑO | J178: BARRIO DOLORES | K178: 6621603 | L178: Urbana | M178: Oficial | N178: OSVALDO GONZALES CRUZ | O178: 28 | P178: 5 | Q178: 33 | R178: 68 | S178: 83 | T178: 151 | U178: 69 | V178: 62 | W178: 131 | X178: 77 | Y178: 59 | Z178: 136 | AA178: 77 | AB178: 63 | AC178: 140 | AD178: 78 | AE178: 61 | AF178: 139 | AG178: 35 | AH178: 33 | AI178: 68 | AJ178: 49 | AK178: 31 | AL178: 80 | AM178: 26 | AN178: 32 | AO178: 58 | AP178: 39 | AQ178: 12 | AR178: 51 | AS178: 518 | AT178: 436 | AU178: 954
B179: 04 | C179: Copán | D179: 01 | E179: Santa Rosa de Copan | F179: 01 | G179: Santa Rosa de Copán | H179: 040100021 | I179: JOSE CECILIO DEL VALLE | J179: COL OSORIO | K179: 6621907 | L179: Urbana | M179: Oficial | N179: Gladis Aminta Alvarado | O179: 14 | P179: 3 | Q179: 17 | R179: 27 | S179: 37 | T179: 64 | U179: 25 | V179: 33 | W179: 58 | X179: 32 | Y179: 30 | Z179: 62 | AA179: 34 | AB179: 28 | AC179: 62 | AD179: 28 | AE179: 24 | AF179: 52 | AG179: 18 | AH179: 22 | AI179: 40 | AJ179: 24 | AK179: 11 | AL179: 35 | AM179: 12 | AN179: 10 | AO179: 22 | AP179: 19 | AQ179: 11 | AR179: 30 | AS179: 219 | AT179: 206 | AU179: 425
B180: 04 | C180: Copán | D180: 02 | E180: Cabañas | F180: 01 | G180: La Union | H180: 040200001 | I180: DIONISIO DE HERRERA | J180: BARRIO EL CENTRO | K180: 98302358 | L180: Rural | M180: Oficial | N180: catalina vidal alvarado | O180: 13 | P180: 4 | Q180: 17 | R180: 27 | S180: 24 | T180: 51 | U180: 29 | V180: 24 | W180: 53 | X180: 27 | Y180: 27 | Z180: 54 | AA180: 18 | AB180: 27 | AC180: 45 | AD180: 26 | AE180: 23 | AF180: 49 | AG180: 18 | AH180: 19 | AI180: 37 | AJ180: 22 | AK180: 19 | AL180: 41 | AM180: 19 | AN180: 15 | AO180: 34 | AP180: 22 | AQ180: 16 | AR180: 38 | AS180: 208 | AT180: 194 | AU180: 402
B181: 04 | C181: Copán | D181: 02 | E181: Cabañas | F181: 20 | G181: Río Negro | H181: 040200005 | I181: MIGUEL PAZ BARAHONA | J181: RIO NEGRO | L181: Rural | M181: Oficial | N181: jose alfonzo alvarado | O181: 4 | P181: 3 | Q181: 7 | R181: 11 | S181: 14 | T181: 25 | U181: 12 | V181: 15 | W181: 27 | X181: 9 | Y181: 9 | Z181: 18 | AA181: 11 | AB181: 11 | AC181: 22 | AD181: 6 | AE181: 17 | AF181: 23 | AG181: 3 | AH181: 3 | AI181: 6 | AJ181: 9 | AK181: 7 | AL181: 16 | AM181: 7 | AN181: 3 | AO181: 10 | AP181: 10 | AQ181: 2 | AR181: 12 | AS181: 78 | AT181: 81 | AU181: 159
B182: 04 | C182: Copán | D182: 03 | E182: Concepcion | F182: 05 | G182: Candelaria | H182: 040300007 | I182: DIONISIO DE HERRERA | J182: CANDELARIA | K182: 98618919 | L182: Rural | M182: Oficial | N182: ENMA MEJIA LOPEZ | O182: 8 | P182: 1 | Q182: 9 | R182: 10 | S182: 5 | T182: 15 | U182: 17 | V182: 8 | W182: 25 | X182: 14 | Y182: 12 | Z182: 26 | AA182: 7 | AB182: 9 | AC182: 16 | AD182: 13 | AE182: 14 | AF182: 27 | AG182: 10 | AH182: 14 | AI182: 24 | AJ182: 7 | AK182: 7 | AL182: 14 | AM182: 10 | AN182: 5 | AO182: 15 | AP182: 13 | AQ182: 6 | AR182: 19 | AS182: 101 | AT182: 80 | AU182: 181
B183: 04 | C183: Copán | D183: 04 | E183: Copan Ruinas | F183: 48 | G183: Sesesmil Segundo | H183: 040400041 | I183: EL ADELANTO | J183: SESESMIL SEGUNDO | L183: Rural | M183: Oficial | N183: MARTHA DILIA DIAZ AYALA | O183: 3 | P183: 5 | Q183: 8 | R183: 16 | S183: 21 | T183: 37 | U183: 15 | V183: 19 | W183: 34 | X183: 7 | Y183: 8 | Z183: 15 | AA183: 11 | AB183: 10 | AC183: 21 | AD183: 18 | AE183: 13 | AF183: 31 | AG183: 11 | AH183: 8 | AI183: 19 | AJ183: 17 | AK183: 4 | AL183: 21 | AM183: 18 | AN183: 15 | AO183: 33 | AP183: 19 | AQ183: 10 | AR183: 29 | AS183: 132 | AT183: 108 | AU183: 240
B184: 04 | C184: Copán | D184: 05 | E184: Corquin | F184: 09 | G184: Potrerillos | H184: 040500007 | I184: GRACIAS A DIOS | J184: POTRERILLOS | L184: Rural | M184: Oficial | N184: Hernan Deras Mejia | O184: 5 | P184: 2 | Q184: 7 | R184: 9 | S184: 10 | T184: 19 | U184: 5 | V184: 9 | W184: 14 | X184: 12 | Y184: 16 | Z184: 28 | AA184: 16 | AB184: 6 | AC184: 22 | AD184: 12 | AE184: 18 | AF184: 30 | AG184: 8 | AH184: 18 | AI184: 26 | AJ184: 15 | AK184: 16 | AL184: 31 | AM184: 11 | AN184: 6 | AO184: 17 | AP184: 19 | AQ184: 10 | AR184: 29 | AS184: 107 | AT184: 109 | AU184: 216
B185: 04 | C185: Copán | D185: 06 | E185: Cucuyagua | F185: 07 | G185: Ojos de Agua | H185: 040600022 | I185: CEB LEMPIRA | J185: CUCUYAGUA OJOS DE AGUA | K185: 89880261 | L185: Rural | M185: Oficial | N185: RAFAEL ANTONIO VALENZUELA | O185: 4 | P185: 3 | Q185: 7 | R185: 8 | S185: 18 | T185: 26 | U185: 15 | V185: 12 | W185: 27 | X185: 13 | Y185: 12 | Z185: 25 | AA185: 13 | AB185: 8 | AC185: 21 | AD185: 8 | AE185: 9 | AF185: 17 | AG185: 13 | AH185: 9 | AI185: 22 | AJ185: 14 | AK185: 7 | AL185: 21 | AM185: 14 | AN185: 4 | AO185: 18 | AP185: 14 | AQ185: 5 | AR185: 19 | AS185: 112 | AT185: 84 | AU185: 196
B186: 04 | C186: Copán | D186: 07 | E186: Dolores | F186: 01 | G186: Florida | H186: 040700001 | I186: CENTRO DE EDUCACIÒN BÀSICA CULTURA | J186: DOLORES, COPÀN | K186: 6579013 | L186: Urbana | M186: Oficial | N186: ADA VICTORIA VALDEZ | O186: 10 | P186: 1 | Q186: 11 | R186: 20 | S186: 20 | T186: 40 | U186: 17 | V186: 12 | W186: 29 | X186: 13 | Y186: 19 | Z186: 32 | AA186: 14 | AB186: 16 | AC186: 30 | AD186: 17 | AE186: 16 | AF186: 33 | AG186: 13 | AH186: 8 | AI186: 21 | AJ186: 17 | AK186: 15 | AL186: 32 | AM186: 14 | AN186: 15 | AO186: 29 | AP186: 18 | AQ186: 21 | AR186: 39 | AS186: 143 | AT186: 142 | AU186: 285
B187: 04 | C187: Copán | D187: 09 | E187: El Paraiso | F187: 14 | G187: La Playona | H187: 040900004 | I187: MINERVA | J187: LA PLAYONA | K187: 99576573 | L187: Rural | M187: Oficial | N187: Ernesto Perez Alvarez | O187: 5 | P187: 4 | Q187: 9 | R187: 19 | S187: 21 | T187: 40 | U187: 28 | V187: 34 | W187: 62 | X187: 18 | Y187: 16 | Z187: 34 | AA187: 18 | AB187: 22 | AC187: 40 | AD187: 14 | AE187: 19 | AF187: 33 | AG187: 11 | AH187: 15 | AI187: 26 | AJ187: 14 | AK187: 14 | AL187: 28 | AM187: 9 | AN187: 5 | AO187: 14 | AP187: 2 | AQ187: 8 | AR187: 10 | AS187: 133 | AT187: 154 | AU187: 287
B188: 04 | C188: Copán | D188: 09 | E188: El Paraiso | F188: 03 | G188: Buena Vista | H188: 040900009 | I188: MARCO AURELIO SOTO | J188: BUENA VISTA | K188: 99576573 | L188: Rural | M188: Oficial | N188: ABRAHAM LOYO ESQUIVEL | O188: 3 | P188: 3 | Q188: 6 | R188: 8 | S188: 13 | T188: 21 | U188: 11 | V188: 14 | W188: 25 | X188: 4 | Y188: 1 | Z188: 5 | AA188: 10 | AB188: 3 | AC188: 13 | AD188: 6 | AE188: 2 | AF188: 8 | AG188: 3 | AH188: 2 | AI188: 5 | AJ188: 0 | AK188: 0 | AL188: 0 | AM188: 0 | AN188: 0 | AO188: 0 | AP188: 0 | AQ188: 0 | AR188: 0 | AS188: 42 | AT188: 35 | AU188: 77
B189: 04 | C189: Copán | D189: 09 | E189: El Paraiso | F189: 23 | G189: San Antonio de Las Crucitas | H189: 040900012 | I189: EL ADELANTO | J189: SAN ANTONIO CRUCITAS | K189: 98616170 | L189: Rural | M189: Oficial | N189: GUILLERMO DE JESUS MEJIA MEJIA | O189: 2 | P189: 3 | Q189: 5 | R189: 21 | S189: 38 | T189: 59 | U189: 30 | V189: 25 | W189: 55 | X189: 19 | Y189: 22 | Z189: 41 | AA189: 12 | AB189: 16 | AC189: 28 | AD189: 14 | AE189: 4 | AF189: 18 | AG189: 19 | AH189: 3 | AI189: 22 | AJ189: 15 | AK189: 12 | AL189: 27 | AM189: 7 | AN189: 6 | AO189: 13 | AP189: 13 | AQ189: 5 | AR189: 18 | AS189: 150 | AT189: 131 | AU189: 281
B190: 04 | C190: Copán | D190: 10 | E190: Florida | F190: 08 | G190: El Espíritu Santo | H190: 041000007 | I190: RAMON ROSA | J190: EL ESPIRITU | L190: Rural | M190: Oficial | N190: CARMEN SOFIA AGUILAR GALDAMEZ | O190: 4 | P190: 3 | Q190: 7 | R190: 17 | S190: 11 | T190: 28 | U190: 10 | V190: 15 | W190: 25 | X190: 10 | Y190: 12 | Z190: 22 | AA190: 7 | AB190: 9 | AC190: 16 | AD190: 13 | AE190: 12 | AF190: 25 | AG190: 4 | AH190: 8 | AI190: 12 | AJ190: 9 | AK190: 4 | AL190: 13 | AM190: 6 | AN190: 6 | AO190: 12 | AP190: 9 | AQ190: 10 | AR190: 19 | AS190: 85 | AT190: 87 | AU190: 172
B191: 04 | C191: Copán | D191: 10 | E191: Florida | F191: 27 | G191: Plancitos o Berlín | H191: 041000014 | I191: JUAN LINDO | J191: BERLIN | K191: 99645665 | L191: Rural | M191: Oficial | N191: ALBA MARGARITA MEJIA ESCOBAR | O191: 5 | P191: 0 | Q191: 5 | R191: 14 | S191: 16 | T191: 30 | U191: 10 | V191: 14 | W191: 24 | X191: 12 | Y191: 7 | Z191: 19 | AA191: 12 | AB191: 9 | AC191: 21 | AD191: 6 | AE191: 10 | AF191: 16 | AG191: 11 | AH191: 9 | AI191: 20 | AJ191: 10 | AK191: 10 | AL191: 20 | AM191: 10 | AN191: 6 | AO191: 16 | AP191: 8 | AQ191: 8 | AR191: 16 | AS191: 93 | AT191: 89 | AU191: 182
B192: 04 | C192: Copán | D192: 10 | E192: Florida | F192: 06 | G192: Concepción de La Barranca | H192: 041000016 | I192: CRISTOBAL COLON | J192: CONCEPCION BARRANCAS | K192: 98529875 | L192: Rural | M192: Oficial | N192: OSCAR AVILIO ALVARADO PAZ | O192: 7 | P192: 4 | Q192: 11 | R192: 44 | S192: 31 | T192: 75 | U192: 32 | V192: 36 | W192: 68 | X192: 26 | Y192: 28 | Z192: 54 | AA192: 25 | AB192: 37 | AC192: 62 | AD192: 32 | AE192: 26 | AF192: 58 | AG192: 16 | AH192: 18 | AI192: 34 | AJ192: 10 | AK192: 7 | AL192: 17 | AM192: 10 | AN192: 7 | AO192: 17 | AP192: 12 | AQ192: 6 | AR192: 18 | AS192: 207 | AT192: 196 | AU192: 403
B193: 04 | C193: Copán | D193: 10 | E193: Florida | F193: 16 | G193: La Elencita | H193: 041000019 | I193: JOSE CECILIO DEL VALLE | J193: LA ELENCITA | L193: Rural | M193: Oficial | N193: DAYSY GUADALUPE MEJIA CAMPOS | O193: 2 | P193: 0 | Q193: 2 | R193: 12 | S193: 6 | T193: 18 | U193: 8 | V193: 9 | W193: 17 | X193: 4 | Y193: 6 | Z193: 10 | AA193: 6 | AB193: 4 | AC193: 10 | AD193: 9 | AE193: 4 | AF193: 13 | AG193: 6 | AH193: 5 | AI193: 11 | AJ193: 10 | AK193: 7 | AL193: 17 | AM193: 9 | AN193: 4 | AO193: 13 | AP193: 9 | AQ193: 3 | AR193: 12 | AS193: 73 | AT193: 48 | AU193: 121
B194: 04 | C194: Copán | D194: 10 | E194: Florida | F194: 29 | G194: Pueblo Nuevo | H194: 041000030 | I194: MARCO AURELIO SOTO | J194: PUEBLO NUEVO | K194: 99645665 | L194: Rural | M194: Oficial | N194: LESSY RUTH MORENO ARITA | O194: 4 | P194: 4 | Q194: 8 | R194: 22 | S194: 18 | T194: 40 | U194: 19 | V194: 21 | W194: 40 | X194: 23 | Y194: 27 | Z194: 50 | AA194: 11 | AB194: 25 | AC194: 36 | AD194: 17 | AE194: 13 | AF194: 30 | AG194: 11 | AH194: 11 | AI194: 22 | AJ194: 17 | AK194: 7 | AL194: 24 | AM194: 12 | AN194: 6 | AO194: 18 | AP194: 14 | AQ194: 4 | AR194: 18 | AS194: 146 | AT194: 132 | AU194: 278
B195: 04 | C195: Copán | D195: 11 | E195: La Jigua | F195: 03 | G195: Chepelares | H195: 041100002 | I195: LAS AMERICAS | J195: CHEPELARES | L195: Rural | M195: Oficial | N195: RONI PRADO MORAN | O195: 3 | P195: 2 | Q195: 5 | R195: 8 | S195: 6 | T195: 14 | U195: 11 | V195: 6 | W195: 17 | X195: 6 | Y195: 9 | Z195: 15 | AA195: 7 | AB195: 7 | AC195: 14 | AD195: 4 | AE195: 6 | AF195: 10 | AG195: 9 | AH195: 5 | AI195: 14 | AJ195: 8 | AK195: 5 | AL195: 13 | AM195: 11 | AN195: 7 | AO195: 18 | AP195: 10 | AQ195: 7 | AR195: 17 | AS195: 74 | AT195: 58 | AU195: 132
B196: 04 | C196: Copán | D196: 12 | E196: La Union | F196: 07 | G196: Las Minas de San Andrés | H196: 041200010 | I196: JUAN PABLO VILLANUEVA | J196: SAN ANDRES MINAS | L196: Rural | M196: Oficial | N196: AURISTELA LARA TABORA | O196: 22 | P196: 0 | Q196: 22 | R196: 10 | S196: 17 | T196: 27 | U196: 9 | V196: 19 | W196: 28 | X196: 21 | Y196: 16 | Z196: 37 | AA196: 16 | AB196: 8 | AC196: 24 | AD196: 11 | AE196: 15 | AF196: 26 | AG196: 16 | AH196: 24 | AI196: 40 | AJ196: 20 | AK196: 21 | AL196: 41 | AM196: 11 | AN196: 12 | AO196: 23 | AP196: 8 | AQ196: 10 | AR196: 18 | AS196: 122 | AT196: 142 | AU196: 264
B197: 04 | C197: Copán | D197: 12 | E197: La Union | F197: 01 | G197: La Unión | H197: 041200027 | I197: OLGA ONDINA LOPEZ | J197: BO LA CRUZ | K197: 6088075 | L197: Fronteriza | M197: Oficial | N197: HECTOR ALONSO ALVARADO GARCIA | O197: 14 | P197: 3 | Q197: 17 | R197: 22 | S197: 30 | T197: 52 | U197: 17 | V197: 22 | W197: 39 | X197: 18 | Y197: 27 | Z197: 45 | AA197: 18 | AB197: 20 | AC197: 38 | AD197: 14 | AE197: 22 | AF197: 36 | AG197: 20 | AH197: 22 | AI197: 42 | AJ197: 38 | AK197: 22 | AL197: 60 | AM197: 28 | AN197: 31 | AO197: 59 | AP197: 28 | AQ197: 19 | AR197: 47 | AS197: =R197+U197+X197+AA197+AD197+AG197+AJ197+AM197+AP197 -> 203 | AT197: 215 | AU197: 418
B198: 04 | C198: Copán | D198: 13 | E198: Nueva Arcadia | F198: 04 | G198: Chalmeca | H198: 041300002 | I198: AUGUSTO C COELLO | J198: CHALMECA | L198: Rural | M198: Oficial | N198: GLADIS ELADIA LEIVA PORTILLO | O198: 11 | P198: 4 | Q198: 15 | R198: 39 | S198: 47 | T198: 86 | U198: 38 | V198: 46 | W198: 84 | X198: 26 | Y198: 39 | Z198: 65 | AA198: 31 | AB198: 32 | AC198: 63 | AD198: 23 | AE198: 41 | AF198: 64 | AG198: 25 | AH198: 16 | AI198: 41 | AJ198: 8 | AK198: 5 | AL198: 13 | AM198: 11 | AN198: 5 | AO198: 16 | AP198: 12 | AQ198: 5 | AR198: 17 | AS198: 213 | AT198: 236 | AU198: 449
B199: 04 | C199: Copán | D199: 13 | E199: Nueva Arcadia | F199: 11 | G199: Quebrada Seca | H199: 041300003 | I199: ESC 21 DE OCTUBRE | J199: QUEBRADA SECA | K199: 99617567 | L199: Rural | M199: Oficial | N199: FAFAEL ANTONIO ROSA ELIAS | O199: 3 | P199: 3 | Q199: 6 | R199: 14 | S199: 12 | T199: 26 | U199: 17 | V199: 19 | W199: 36 | X199: 23 | Y199: 23 | Z199: 46 | AA199: 14 | AB199: 15 | AC199: 29 | AD199: 16 | AE199: 24 | AF199: 40 | AG199: 10 | AH199: 10 | AI199: 20 | AJ199: 12 | AK199: 8 | AL199: 20 | AM199: 6 | AN199: 6 | AO199: 12 | AP199: 4 | AQ199: 9 | AR199: 13 | AS199: 116 | AT199: 126 | AU199: 242
B200: 04 | C200: Copán | D200: 13 | E200: Nueva Arcadia | F200: 09 | G200: Los Tangos | H200: 041300016 | I200: CRISTOBAL COLON | J200: LOS TANGOS | L200: Rural | M200: Oficial | N200: GLORIA DEL CARMEN GODOY CRUZ | O200: 9 | P200: 0 | Q200: 9 | R200: 28 | S200: 18 | T200: 46 | U200: 29 | V200: 31 | W200: 60 | X200: 17 | Y200: 25 | Z200: 42 | AA200: 26 | AB200: 31 | AC200: 57 | AD200: 21 | AE200: 15 | AF200: 36 | AG200: 16 | AH200: 14 | AI200: 30 | AJ200: 16 | AK200: 14 | AL200: 30 | AM200: 17 | AN200: 15 | AO200: 32 | AP200: 4 | AQ200: 7 | AR200: 11 | AS200: 174 | AT200: 170 | AU200: 344
... 898 more rows

Sheet Hoja2

Sheet Hoja3
